Cogmind - Beta 16 @@@ ROGUE MODE // 2025.12.14 @ 12:27:22 Player: BlobtheGreat Result: Core destroyed Performance ------------- Evolutions (7) 3500 Regions Visited (30) 6000 Robots Destroyed (372) 1860 Value Destroyed (12905) 12905 Prototype IDs (69) 1380 Alien Tech Used (1) 200 Bonus (3871) 3871 TOTAL SCORE: 29716 Bonus ------- High Alert Combat Kills 532 Follower Combat Kills 2542 Network Hubs Disabled 200 Met Imprinter 300 Was Imprinted 300 Met Zhirov 300 MAIN.C Attacked Warlord 500 Warlord Defense Kills 310 Friendly Fire -1113 Cogmind --------- Core Integrity 0/1300 Matter 7/300 Energy 100/100 System Corruption 39% Temperature Cool (0) Movement Core (50) Location -3/Research Parts ------- > --- POWER (2) -------- (None) > --- PROPULSION (5) --- (None) > --- UTILITY (11) ----- (None) > --- WEAPON (3) ------- (None) > --- INVENTORY (5) ---- Flexi-carbon Leg Improved Actuator Array Graphene Brace Advanced Trap Extractor (7/8 Dirty Bomb) Vortex Lance (38) Peak State ------------ > --- POWER ------------ Cold Fusion Reactor Heavy Antimatter Reactor > --- PROPULSION ------- Armored Leg Enhanced Armored Leg Enhanced Armored Leg Enhanced Biometal Leg Experimental Myomer Leg > --- UTILITY ---------- High-capacity Storage Unit Improved Sensor Array Advanced Signal Interpreter Improved Melee Analysis Suite Experimental Melee Analysis Suite Advanced Target Analyzer Experimental Core Analyzer Advanced Transmission Jammer Centrium Medium Armor Plating > --- WEAPON ----------- Fusion Bomb Launcher Thunder Hammer Vortex Lance > --- INVENTORY -------- Neutrino Core Neutrino Core Armored Leg Improved Thermal Generator Experimental Energy Well Microactuators Microactuators Improved Actuator Array Improved Transmission Jammer Experimental Utility Shielding Graphene Brace Experimental Focal Shield Improved Shield Generator Ghost Barrier Helical Railgun Missile Launcher Improved Plasma Cutter Vortex Lance Vortex Lance Vortex Lance [Rating: 142] Favorites ----------- Power Cold Fusion Reactor Engine Improved Deuterium Engine Power Core Enhanced Nuclear Core Reactor Cold Fusion Reactor Propulsion Light Treads Treads Light Treads Leg Flexi-carbon Leg Wheel Armored Huge Wheel Hover Unit Cooled Gravmag System Flight Unit Improved Cesium-ion Thruster Utility High-capacity Storage Unit Device Improved Cooling System Storage High-capacity Storage Unit Processor Core Analyzer Hackware Improved Hacking Suite Protection Improved Light Armor Plating Weapon Cooled Pulse Rifle Energy Gun Cooled Pulse Rifle Energy Cannon Advanced Beam Cannon Ballistic Gun Improved Assault Rifle Ballistic Cannon Heavy Assault Cannon Launcher Thermoblaster Impact Weapon Thunder Hammer Slashing Weapon Makeshift Sword Piercing Weapon Force Lance Special Melee Weapon Dirty Datajack Build | -11 -10 -10 -9 -9 -9 -8 -8 -7 -7 -7 -7 -6 -6 -6 -6 -6 -6 -6 -6 -5 -5 -5 -5 -4 -4 -4 -4 -4 -3 -3 ------- Run | Yrd Mat Min Mat Min Exi Min Mat Fac Low Low Zio Pro Fac Was Fac Ext Cet Arc Hub Fac Upp Upp War Pro Fac Upp Upp Zhi Pro Res Slots Evolved 14 | . . . 2 . . . 2 2 . . . . 2 . . . . . . 2 . . . . 2 . . . . 2 Power 1 | . . . . . . . . . . . . . . . . . . . . 1 . . . . . . . . . . Propulsion 3 | . . . 1 . . . . 1 . . . . 1 . . . . . . . . . . . . . . . . . Utility 9 | . . . 1 . . . 1 1 . . . . 1 . . . . . . 1 . . . . 2 . . . . 2 Weapon 1 | . . . . . . . 1 . . . . . . . . . . . . . . . . . . . . . . . Parts Attached 253 | 7 6 6 21 1 . 4 32 40 . 1 1 1 13 8 9 10 3 3 5 17 1 3 14 1 22 2 2 2 1 17 Power 23 | 1 . 1 2 . . . 4 1 . . . . 1 1 . 1 . . 1 2 . . 1 1 3 . . . . 3 Engine 7 | 1 . 1 2 . . . 2 1 . . . . . . . . . . . . . . . . . . . . . . Core 6 | . . . . . . . 2 . . . . . 1 . . 1 . . . 1 . . . 1 . . . . . . Reactor 10 | . . . . . . . . . . . . . . 1 . . . . 1 1 . . 1 . 3 . . . . 3 Propulsion 72 | 2 . 2 11 . . 2 11 12 . . . . 5 1 3 4 . . 2 4 . . 5 . 2 . 2 1 . 3 Treads 28 | 2 . 2 11 . . 2 11 . . . . . . . . . . . . . . . . . . . . . . . Leg 37 | . . . . . . . . 11 . . . . 4 1 3 4 . . 2 4 . . 2 . 2 . 2 . . 2 Wheel 1 | . . . . . . . . . . . . . . . . . . . . . . . . . . . . . . 1 Hover 4 | . . . . . . . . . . . . . 1 . . . . . . . . . 2 . . . . 1 . . Flight 2 | . . . . . . . . 1 . . . . . . . . . . . . . . 1 . . . . . . . Utility 83 | 2 2 1 4 1 . 1 7 10 . . 1 1 6 3 4 1 1 2 . 9 1 1 5 . 11 2 . 1 1 5 Device 44 | 1 . . 2 1 . 1 3 4 . . 1 1 2 2 1 . . 2 . 4 1 1 1 . 9 1 . . 1 5 Storage 9 | 1 1 . . . . . . 2 . . . . 1 . . 1 . . . . . . 1 . 1 . . 1 . . Processor 9 | . . . . . . . 1 1 . . . . 1 . 1 . . . . 2 . . 2 . 1 . . . . . Hackware 1 | . . . . . . . . . . . . . . . . . . . . 1 . . . . . . . . . . Protection 20 | . 1 1 2 . . . 3 3 . . . . 2 1 2 . 1 . . 2 . . 1 . . 1 . . . . Artifact . | . . . . . . . . . . . . . . . . . . . . . . . . . . . . . . . Weapon 75 | 2 4 2 4 . . 1 10 17 . 1 . . 1 3 2 4 2 1 2 2 . 2 3 . 6 . . . . 6 Energy Gun 18 | . . . . . . . . 12 . 1 . . . . 1 1 . . 2 . . . . . . . . . . 1 Energy Cannon 4 | . 2 . . . . . . 1 . . . . . 1 . . . . . . . . . . . . . . . . Ballistic Gun 23 | 2 . 2 4 . . . 9 . . . . . . . 1 2 2 . . . . . 1 . . . . . . . Ballistic Cannon 4 | . . . . . . . 1 . . . . . . 1 . . . . . . . . . . . . . . . 2 Launcher 9 | . 2 . . . . 1 . . . . . . . 1 . 1 . . . . . . 1 . 1 . . . . 2 Special Weapon . | . . . . . . . . . . . . . . . . . . . . . . . . . . . . . . . Impact Weapon 3 | . . . . . . . . 2 . . . . . . . . . . . 1 . . . . . . . . . . Slashing Weapon 8 | . . . . . . . . 2 . . . . 1 . . . . . . 1 . . . . 4 . . . . . Piercing Weapon 3 | . . . . . . . . . . . . . . . . . . . . . . . 1 . 1 . . . . 1 Special Melee Weapon 3 | . . . . . . . . . . . . . . . . . . 1 . . . 2 . . . . . . . . Unidentified Prototypes 49 | . 1 . 2 . . . 1 6 . . 1 . 1 2 . 4 2 . 1 7 . . 10 . 6 . . 3 . 2 Parts Lost 74 | . . 1 3 . . 1 14 4 . . . 2 3 . 1 . . . 3 2 2 . 5 1 2 1 . . . 29 Power 10 | . . 1 1 . . . 2 . . . . . . . . . . . . . 1 . . 1 . . . . . 4 Propulsion 20 | . . . . . . 1 2 3 . . . 1 1 . . . . . 1 . . . 2 . 2 . . . . 7 Utility 30 | . . . 2 . . . 5 1 . . . 1 1 . . . . . . 2 . . 3 . . 1 . . . 14 Weapon 14 | . . . . . . . 5 . . . . . 1 . 1 . . . 2 . 1 . . . . . . . . 4 Highest Loss Streak 22 | . . 1 1 . . 1 5 1 . . . 1 2 . 1 . . . 2 1 1 . 5 1 1 1 . . . 22 To Critical Strikes 1 | . . . . . . . . . . . . . . . . . . . . . . . . . 1 . . . . . Average Backups 17 | 4 14 20 19 20 20 19 19 14 15 15 15 15 14 18 17 17 18 18 17 18 17 18 19 14 19 19 19 20 20 14 Power 1 | . 1 1 1 1 1 1 1 . 1 1 1 1 1 2 2 2 1 1 1 . . . . . 1 1 1 1 1 . Propulsion 2 | 3 1 4 3 4 4 3 4 . 1 1 1 1 . 2 2 3 4 4 4 4 5 5 3 2 . 1 1 2 1 1 Utility 8 | . 5 6 6 5 5 5 5 8 8 8 8 8 8 10 9 9 9 10 10 11 10 11 11 7 10 11 11 10 10 7 Weapon 5 | 1 7 9 9 9 9 9 6 4 4 4 4 4 3 3 3 3 3 3 2 2 2 2 3 5 4 5 5 5 5 3 Tool/Special . | . . . . . . . . . . . . . . . . . . . . . . . . . . . . . . . Unused Backups 51 | . 6 2 7 . . . . 8 1 . 1 . 2 2 1 3 1 1 1 1 . . 6 . 1 . . . . 7 Power 7 | . . . 1 . . . . . . . . . 1 . . 2 1 . 1 . . . . . 1 . . . . . Propulsion 13 | . 4 2 . . . . . . . . . . . . 1 . . . . 1 . . 4 . . . . . . 1 Utility 14 | . . . 3 . . . . 2 1 . 1 . . 2 . 1 . 1 . . . . 1 . . . . . . 2 Weapon 13 | . 2 . 3 . . . . 5 . . . . . . . . . . . . . . 1 . . . . . . 2 Tool/Special 4 | . . . . . . . . 1 . . . . 1 . . . . . . . . . . . . . . . . 2 Average Slot Usage (%) 95 | . 100 89 99 100 100 99 95 99 100 100 96 98 95 98 99 99 99 99 98 93 86 90 93 82 94 99 100 99 100 64 Engine 4 | . 14 4 10 11 11 11 5 7 7 7 7 7 . . . . . . . . . . . . . . . . . . Core 1 | . . . . . . . 3 . . . . . 5 1 . 5 6 6 3 4 1 . . . . . . . . . Reactor 2 | . . . . . . . . . . . . . . 4 6 . . . 2 5 5 5 4 4 9 10 10 10 10 5 Treads 9 | . 28 28 33 33 33 32 26 . . . . . . . . . . . . . . . . . . . . . . . Leg 18 | . . . . . . . . 29 30 30 30 28 28 33 33 32 33 33 32 29 29 29 28 23 24 26 26 25 26 12 Device 11 | . 8 . 10 11 11 11 11 12 14 14 15 14 13 13 13 13 13 15 13 13 14 17 11 5 10 10 10 9 10 13 Storage 7 | . 14 14 11 11 11 11 9 7 7 7 7 7 6 6 6 6 6 6 6 5 5 5 5 5 5 5 5 5 5 2 Processor 11 | . . . . . . . 4 14 15 15 15 15 13 13 13 13 13 13 13 16 17 17 17 23 24 26 26 26 26 16 Protection 5 | . 5 14 10 11 11 11 9 2 . . . . 5 5 5 6 5 3 6 1 . . 4 5 4 4 5 5 5 2 Energy Gun 6 | . . . . . . . . 20 19 22 19 22 18 16 13 12 8 6 5 . . . . . . . . . . . Energy Cannon 1 | . 25 . . . . . . . . . . . . . . . . . . . . . . . . . . . . . Ballistic Gun 7 | . 2 27 21 22 22 21 24 2 . . . . . . 3 6 10 12 13 . . . . . . . . . . . Impact Weapon 1 | . . . . . . . . . 3 . . . . . 1 . . . . 4 4 5 5 5 4 . . . . . Slashing Weapon 1 | . . . . . . . . . . . . . . . . . . . . 4 2 . . . 6 10 10 10 10 5 Peak Build Rating 142 | 7 15 17 23 23 23 25 37 53 54 54 56 54 69 78 78 83 91 91 93 103 103 97 134 116 142 136 130 133 132 141 Average Rating 62 | 5 13 12 19 22 23 24 32 49 53 53 51 52 60 70 76 79 87 88 90 97 90 93 115 112 129 129 130 130 131 91 On Entrance 69 | . 7 15 17 23 23 23 25 34 53 54 54 54 50 68 74 78 80 91 91 86 99 85 97 116 108 134 130 130 131 132 Avg Prop Armor Cover (%) 5 | . . . . . . . . . . . . . . . . . . . . . . . 5 . . . . . . . Naked Turns 24 | . . . . . . . . . . . . . . . . . . . . . . . . . . . . . . 24 Heaviest Build 116 | 12 58 58 60 59 58 58 77 54 54 54 45 45 65 79 78 78 74 74 80 86 79 63 99 91 100 90 89 89 92 116 Greatest Support 118 | 40 40 40 60 60 60 60 62 70 70 70 70 70 90 92 100 102 101 101 101 107 107 107 118 86 111 97 105 105 105 105 Greatest Overweight (x) 9 | . 1 1 . . . . 2 1 . . . . . . . . . . . 1 . . 4 1 1 . . 1 . 9 Average Overweight (x) . | . . 1 . . . . . . . . . . . . . . . . . . . . . . . . . . . . Largest Inventory Capacity 25 | 8 20 20 20 20 20 20 20 20 15 15 15 15 20 20 20 20 20 20 20 20 20 20 20 20 25 20 20 20 20 20 Average Capacity 18 | 7 15 20 20 20 20 20 20 15 15 15 15 15 16 20 20 20 20 20 20 20 20 20 20 20 20 20 20 20 20 14 Most Carried 21 | 8 20 20 20 20 20 20 20 20 15 15 15 15 20 20 20 20 20 20 20 20 19 20 20 15 21 20 20 20 20 20 Average Carried 17 | 5 14 20 19 20 20 19 19 14 15 15 14 15 15 19 19 19 20 19 19 19 18 19 19 14 19 19 19 20 19 13 Final Capacity 20 | 8 20 20 20 20 20 20 20 15 15 15 15 15 20 20 20 20 20 20 20 20 20 20 20 20 20 20 20 20 20 5 Final Carried 20 | 8 20 20 20 20 20 19 20 15 15 15 15 15 20 20 19 20 20 20 20 19 18 20 15 15 20 19 20 20 20 5 Class Distribution -------------------- 21% | Mutant 14% | Scavenger-Skirmisher 14% | Gladiator 13% | Scavenger-Mutant 12% | Scavenger-Gunner 4% | Commander-Gunner 3% | Gunner 3% | Skirmisher Dominant Class ---------------- Mutant | -10/Materials Mutant | -10/Mines Scavenger-Mutant | -9/Materials Scavenger-Mutant | -9/Mines Scavenger-Mutant | -9/Exiles Scavenger-Mutant | -8/Mines Scavenger-Gunner | -8/Materials Scavenger-Skirmisher | -7/Factory Scavenger-Skirmisher | -7/Lower Caves Scavenger-Skirmisher | -7/Lower Caves Scavenger-Skirmisher | -7/Zion Scavenger-Skirmisher | -6/Proximity Caves Skirmisher | -6/Factory Scavenger-Gunner | -6/Waste Scavenger-Gunner | -6/Factory Commander-Gunner | -6/Extension Commander-Gunner | -6/Cetus Commander-Gunner | -6/Archives Messiah-Gunner | -6/Hub_04(d) Gladiator | -5/Factory Mutant | -5/Upper Caves Mutant | -5/Upper Caves Mutant | -5/Warlord Gladiator | -4/Proximity Caves Gladiator | -4/Factory Gladiator | -4/Upper Caves Gladiator | -4/Upper Caves Scavenger-Gladiator | -4/Zhirov Trapper-Gladiator | -3/Proximity Caves Scavenger-Gladiator | -3/Research Resources | -11 -10 -10 -9 -9 -9 -8 -8 -7 -7 -7 -7 -6 -6 -6 -6 -6 -6 -6 -6 -5 -5 -5 -5 -4 -4 -4 -4 -4 -3 -3 ----------- Run | Yrd Mat Min Mat Min Exi Min Mat Fac Low Low Zio Pro Fac Was Fac Ext Cet Arc Hub Fac Upp Upp War Pro Fac Upp Upp Zhi Pro Res Matter Collected 8858 | 302 147 115 850 70 . 229 1847 745 94 94 79 55 335 306 232 444 76 40 521 215 298 31 288 75 689 205 46 . 155 275 Remotely . | . . . . . . . . . . . . . . . . . . . . . . . . . . . . . . . Salvage Created 15459 | 93 416 193 1264 159 . 373 2806 2234 93 48 . 114 896 509 347 473 48 144 1334 456 121 . 120 201 1793 170 . . 38 1016 Parts 794 | 12 34 10 88 19 . 17 158 122 10 1 . 9 45 15 11 18 3 19 62 18 6 . 3 5 64 1 . . 4 40 Haulers Intercepted 27 | . 2 . 4 . . . 4 7 . . . . 2 . 1 . . . 3 1 . . . . 2 . . . . 1 Recyclers Shooed 13 | 1 . . . . . . 3 1 . . . . 4 . 1 . . . . . . . . . 1 . . . . 2 Parts Field Recycled . | . . . . . . . . . . . . . . . . . . . . . . . . . . . . . . . Retrieved Matter . | . . . . . . . . . . . . . . . . . . . . . . . . . . . . . . . Parts Self-Destructed 42 | . . . . . . . . . 9 1 . 22 . . . . . . . . 5 . . 1 . . 1 . 3 . Prevented 10 | . . . . . . . . . . . . 2 . . . . . . . . 1 . . 4 . . 3 . . . Parts Restored . | . . . . . . . . . . . . . . . . . . . . . . . . . . . . . . . Kills | -11 -10 -10 -9 -9 -9 -8 -8 -7 -7 -7 -7 -6 -6 -6 -6 -6 -6 -6 -6 -5 -5 -5 -5 -4 -4 -4 -4 -4 -3 -3 ------- Run | Yrd Mat Min Mat Min Exi Min Mat Fac Low Low Zio Pro Fac Was Fac Ext Cet Arc Hub Fac Upp Upp War Pro Fac Upp Upp Zhi Pro Res Combat Hostiles Destroyed 257 | . 12 6 26 7 . 10 50 33 7 1 . 4 11 . 2 9 1 1 14 7 6 . 4 3 23 4 . . 2 14 Melee 33 | . . . . . . . . . . . . . . . . . . . . 7 1 . 1 1 13 . . . . 10 Guns 152 | . . 5 26 7 . 8 42 29 . 1 . 1 9 . 1 7 1 1 14 . . . . . . . . . . . Cannons 12 | . 3 1 . . . . 8 . . . . . . . . . . . . . . . . . . . . . . . AOE 48 | . 9 . . . . 2 . 3 7 . . 3 2 . . 2 . . . . 5 . 1 . 4 4 . . 2 4 Classes Destroyed 23 | 3 3 2 1 . . 1 3 5 . . . . . . . 1 . 1 . . . . 1 . . . . . 2 . Worker 29 | 1 4 1 1 . . . 5 5 . . . . 1 . . . . . 8 . . . . . 2 . . . . 1 Builder 12 | . . . . . . . 3 2 . . . . 5 . . . . . 2 . . . . . . . . . . . Tunneler 9 | 3 . . . 1 . 2 1 2 . . . . . . . . . . . . . . . . . . . . . . Hauler 27 | . 2 . 4 . . . 4 7 . . . . 2 . 1 . . . 3 1 . . . . 2 . . . . 1 Recycler 12 | 1 1 . 1 1 . . 2 1 . . . . . . 1 . . . 1 . . . . . 3 . . . . . Minesweeper 1 | . . . . . . . . . . . . . . . . . . . . . . . . . . . . . 1 . Mechanic 2 | . . . . . . . . 1 . . . . . . . 1 . . . . . . . . . . . . . . Operator 2 | . . . . . . . . . . . . . . . . . . 2 . . . . . . . . . . . . Drone 2 | . . . . . . . . . . . . . . . . . . . . . . . . . . . . . 2 . Watcher 16 | . 3 . 1 . . . 2 3 . . . . 4 . . 1 . . . . . . . . 2 . . . . . Swarmer 63 | . 12 . 11 7 . 3 4 . 7 . . 3 . . . 4 . . 3 2 2 . 1 . 4 . . . . . Saboteur 1 | . . . . . . . . . . . . . . . . . . . . . . . 1 . . . . . . . Grunt 102 | . . 4 6 . . 6 31 21 . . . . 5 . . 4 . . 7 1 4 . . . 4 3 . . . 6 Brawler 6 | . . . . . . 1 1 1 . . . . . . . . . . . 1 . . . . . 1 . . . 1 Duelist 2 | . . . . . . . . 1 . . . . . . . . . . 1 . . . . . . . . . . . Protector 2 | . . . . . . . . 1 . . . . . . . . . . . . . . 1 . . . . . . . Sentry 34 | . . . 9 . . . 11 2 . 1 . . 2 . 1 1 . 1 1 1 . . . 1 2 . . . . 1 Demolisher 2 | . . 2 . . . . . . . . . . . . . . . . . . . . . . . . . . . . Specialist 2 | . . . . . . . 2 . . . . . . . . . . . . . . . . . . . . . . . Hunter 13 | . . . . . . . . 1 . . . 1 1 . 1 . . . . . . . 1 2 4 . . . . 2 Programmer 25 | . . . . . . . . 6 . . . . 3 . . . . . 1 2 . . . . 9 . . . . 4 Heavy 2 | . . . . . . . 1 . . . . . . . . . . . 1 . . . . . . . . . . . Cetus Guard 1 | . . . . . . . . . . . . . . . . . 1 . . . . . . . . . . . . . Z-Heavy 1 | . . . . . . . . . . . . . . . . 1 . . . . . . . . . . . . . . Packrat 1 | . . . . . . . . . . . . . . . . . . . . . . . . . . 1 . . . . Martyr 4 | . . . . . . . . . . . . . . 4 . . . . . . . . . . . . . . . . Best Kill Streak 11 | 3 5 3 6 4 . 3 6 6 4 1 . 3 8 . 3 2 1 2 11 4 5 . 1 2 4 4 . . 1 7 Combat Bots Only 7 | . 3 3 6 4 . 3 6 4 4 1 . 3 4 . 1 2 1 1 4 4 5 . 1 2 4 4 . . 1 7 Max Kills in Single Turn 11 | 1 2 1 1 2 . 2 2 2 3 1 . 2 2 1 1 1 1 1 11 1 2 . 1 1 3 2 . . 1 2 Gunslinging 1 | . . . . 1 . 1 1 1 . . . . . . . . . . 1 . . . . . . . . . . . Exploded 3 | . 2 . . . . 1 . 1 3 . . 2 2 . . 1 . . . . 2 . 1 . 3 2 . . 1 2 Melee 1 | . . . . . . . . . . . . . . . . . . . . 1 1 . 1 1 1 . . . . 1 Uniques/NPCs Destroyed . | . . . . . . . . . . . . . . . . . . . . . . . . . . . . . . . Combat | -11 -10 -10 -9 -9 -9 -8 -8 -7 -7 -7 -7 -6 -6 -6 -6 -6 -6 -6 -6 -5 -5 -5 -5 -4 -4 -4 -4 -4 -3 -3 -------- Run | Yrd Mat Min Mat Min Exi Min Mat Fac Low Low Zio Pro Fac Was Fac Ext Cet Arc Hub Fac Upp Upp War Pro Fac Upp Upp Zhi Pro Res Hostile Shots Fired 1536 | . 24 22 125 26 . 36 217 207 13 27 . 16 61 . 30 60 7 2 73 48 19 . 77 46 160 10 . . . 230 Missed 517 | . 10 6 31 7 . 13 56 78 4 10 . 9 24 . 11 22 4 . 40 22 6 . 21 19 58 3 . . . 63 Hits 1019 | . 14 16 94 19 . 23 161 129 9 17 . 7 37 . 19 38 3 2 33 26 13 . 56 27 102 7 . . . 167 Melee 31 | . . . . . . . . 9 . . . . . . . . . . . 3 . . 2 . . . . . . 17 Projectile 988 | . 14 16 94 19 . 23 161 120 9 17 . 7 37 . 19 38 3 2 33 23 13 . 54 27 102 7 . . . 150 AOE 5 | . . 5 . . . . . . . . . . . . . . . . . . . . . . . . . . . . Critical Strikes 61 | . 2 1 3 . . 3 12 7 . . . . 4 . 1 5 . . 1 . 1 . 5 . 6 . . . . 10 Actively Blocked 1 | . . . . . . . . . . . . . . . . . . . . . . . . . . . . . . 1 Part Disruptions 4 | . . . . . . . . 1 . . . . . . . . . . . . . . 1 . . . . . . 2 Damage Taken 18880 | . 108 423 1162 149 . 403 2886 1834 72 165 . 159 742 . 398 660 112 53 604 806 234 . 1484 448 1774 175 . . . 4029 Core 3191 | . 36 44 188 13 . . 370 170 28 . . 62 96 . 38 122 . . . 13 32 . 215 85 313 16 . . . 1350 Absorbed by Shields 349 | . . . . . . . 84 . . . . . . . . . . . . . . . . . 65 . . . . 200 Redirected to Shielding 125 | . . . . . . . . . . . . . . . . . . . . . . . . . . . . . . 125 Regen/Repaired (Parts) 915 | . . . 74 . . . . . . . . . . . . . . . . . . . 215 . 626 . . . . . Core Remaining (%) 64 | 100 . 68 . . . 49 32 . . . . 62 . . . . . . 69 . . . . 65 . . . . 71 . Volleys Fired 712 | 8 27 11 90 9 . 28 145 125 5 3 . 12 55 11 17 31 7 9 45 . 13 . 4 . 2 6 . . 4 45 Largest 3 | 2 2 2 2 2 . 2 3 3 1 3 . 3 3 3 3 3 3 3 3 . 1 . 1 . 1 1 . . 1 1 Hottest 260 | 40 136 136 46 46 . 46 78 165 30 130 . 120 120 120 138 175 175 155 155 . 36 . 260 . 36 52 . . 52 88 Shots Fired 1639 | 16 47 22 179 18 . 52 404 349 5 11 . 20 132 31 51 85 19 22 105 . 13 . 4 . 2 6 . . 3 43 Gun 1449 | 16 . 16 178 18 . 48 374 339 . 10 . 17 121 31 51 81 19 22 102 . 4 . 1 . . . . . . 1 Cannon 120 | . 41 6 . . . . 30 4 . . . . . . . . . . . . . . . . . . . . . 39 Launcher 70 | . 6 . 1 . . 4 . 6 5 1 . 3 11 . . 4 . . 3 . 9 . 3 . 2 6 . . 3 3 Special . | . . . . . . . . . . . . . . . . . . . . . . . . . . . . . . . Kinetic 902 | 16 . 16 178 18 . 48 404 33 . . . . . . 16 27 7 18 77 . 4 . 1 . . . . . . 39 Thermal 661 | . 41 6 . . . . . 306 . 10 . 17 121 31 35 54 12 4 21 . . . 2 . . . . . . 1 Explosive 68 | . 6 . 1 . . 4 . 6 5 1 . 3 11 . . 4 . . 3 . 9 . 1 . 2 6 . . 3 3 Electromagnetic 4 | . . . . . . . . 4 . . . . . . . . . . . . . . . . . . . . . . Phasic 4 | . . . . . . . . . . . . . . . . . . . 4 . . . . . . . . . . . Robot Hit Streak 30 | 9 7 6 26 7 . 16 30 20 7 22 . 23 20 12 8 8 12 15 9 . 6 . . . . 4 . . . 5 Robot Miss Streak 13 | 1 2 1 4 3 . 2 5 6 . . . 13 4 5 3 6 2 6 3 . . . 1 . . 3 . . . 4 Penetration Max 1 | . . . . . . . 1 . . . . . . . . . . 1 1 . . . . . . . . . . . Secondary Targets 21 | . . 1 3 1 . 2 8 3 . . . . . . . . . . 3 . . . . . . . . . . . Max Gunslinging Chain 1 | . . 1 1 1 . 1 1 1 . . . . . . . . . . 1 . . . . . . . . . . . Shots Hit Robots 1216 | 12 26 17 127 9 . 40 271 214 2 9 . 10 92 29 34 50 16 12 51 26 6 . 2 8 69 5 . . 1 78 Core Hits 676 | 6 20 9 50 8 . 23 120 132 9 4 . 8 67 10 12 40 6 6 39 10 14 . 1 . 30 13 . . 2 37 Critical Kills 17 | . . . 2 . . . 2 1 . . . . . 2 . . . 3 4 . . . . . 3 . . . . . Critical Parts Destroyed 15 | . . . . . . . 1 . . . . . . . . . . . . . . . 2 4 8 . . . . . Critical Strikes 74 | . . . 2 . . . 6 9 . . . . 2 2 2 3 1 3 4 7 . . 2 5 17 . . . . 9 Burn 15 | . . . . . . . . 7 . . . . 2 . 2 3 1 . . . . . . . . . . . . . Destroy 14 | . . . 2 . . . 4 1 . . . . . . . . . 3 4 . . . . . . . . . . . Blast 2 | . . . . . . . 2 . . . . . . . . . . . . . . . . . . . . . . . Corrupt 1 | . . . . . . . . 1 . . . . . . . . . . . . . . . . . . . . . . Smash 19 | . . . . . . . . . . . . . . 2 . . . . . . . . 2 4 11 . . . . . Sever 19 | . . . . . . . . . . . . . . . . . . . . 7 . . . . 4 . . . . 8 Impale 1 | . . . . . . . . . . . . . . . . . . . . . . . . . 1 . . . . . Sunder 3 | . . . . . . . . . . . . . . . . . . . . . . . . 1 1 . . . . 1 Melee Attacks 301 | . . . . . . . . 2 1 . 1 . 2 4 5 1 . 1 . 46 5 2 3 12 125 2 4 . 1 84 Impact 87 | . . . . . . . . . 1 . . . 2 4 5 1 . . . 12 3 2 2 9 46 . . . . . Slashing 160 | . . . . . . . . 2 . . 1 . . . . . . . . 34 2 . . . 61 1 1 . . 58 Piercing 38 | . . . . . . . . . . . . . . . . . . . . . . . . . 9 1 3 . 1 24 Entropic 15 | . . . . . . . . . . . . . . . . . . . . . . . 1 3 9 . . . . 2 Sneak Attacks 17 | . . . . . . . . . . . . . . 4 . . . 1 . 1 . . . . 8 1 . . 1 1 Combat Hostiles . | . . . . . . . . . . . . . . . . . . . . . . . . . . . . . . . Follow-up Attacks 42 | . . . . . . . . . . . . . . . . . . . . 3 . . . 3 13 . . . . 23 Damage Inflicted 38834 | 133 1291 318 1933 211 . 961 5629 4813 481 210 . 419 2543 859 772 1902 407 341 2376 1427 698 . 130 452 4636 1251 . . 366 4275 Guns 18344 | 131 . 201 1924 154 . 558 4180 4304 . 197 . 177 1873 596 772 949 407 341 1580 . . . . . . . . . . . Cannons 2882 | . 639 81 . . . . 1377 96 . . . . . . . . . . . . . . . . . . . . . 689 Explosions 7612 | . 615 . . . . 372 . 381 481 13 . 242 634 . . 881 . . 796 . 649 . 46 . 354 1132 . . 256 760 Melee 9506 | . . . . . . . . . . . . . . 263 . . . . . 1427 49 . 84 452 4275 119 . . 110 2727 Ramming 490 | 2 37 36 9 57 . 31 72 32 . . . . 36 . . 72 . . . . . . . . 7 . . . . 99 Kinetic 11756 | 131 . 201 1924 154 . 558 5557 395 . . . . . . 259 297 133 304 1154 . . . . . . . . . . 689 Thermal 9302 | . 639 81 . . . . . 3909 . 197 . 177 1873 596 513 652 274 37 354 . . . . . . . . . . . Explosive 6816 | . 615 . . . . 372 . 381 481 13 . 242 634 . . 881 . . . . 649 . 46 . 354 1132 . . 256 760 Electromagnetic 892 | . . . . . . . . 96 . . . . . . . . . . 796 . . . . . . . . . . . Impact 2530 | . . . . . . . . . . . . . . 263 . . . . . 146 . . 84 290 1747 . . . . . Slashing 4734 | . . . . . . . . . . . . . . . . . . . . 1281 49 . . . 1731 . . . . 1673 Piercing 1495 | . . . . . . . . . . . . . . . . . . . . . . . . . 493 119 . . 110 773 Entropic 747 | . . . . . . . . . . . . . . . . . . . . . . . . 162 304 . . . . 281 Phasic 72 | . . . . . . . . . . . . . . . . . . . 72 . . . . . . . . . . . Highest Corruption 39 | . . . . . . . 5 4 4 4 4 . 3 3 6 7 7 7 1 3 3 3 2 2 10 10 10 10 10 39 Average Corruption 5 | . . . . . . . 5 3 4 4 4 . 2 3 5 7 7 4 1 3 3 2 2 2 6 10 10 10 10 19 Corruption Purged 10 | . . . . . . . . . . . . . . . . . . 7 . . . 3 . . . . . . . . Corruption Blocked . | . . . . . . . . . . . . . . . . . . . . . . . . . . . . . . . Effects 379 | . . . . . . . 37 30 10 17 2 . 23 15 28 49 8 6 . 12 15 6 . 5 44 11 13 6 11 31 Message Errors 92 | . . . . . . . 12 5 4 3 . . 5 4 8 10 2 1 . 4 3 1 . 1 13 4 4 1 1 6 Matter Fused 90 | . . . . . . . 10 4 2 3 1 . 8 6 7 15 1 2 . 1 3 . . 1 12 . 4 2 3 5 Heat Flow Errors 54 | . . . . . . . 2 6 2 2 . . 2 2 4 5 . 1 . 6 3 2 . 1 6 4 1 . 1 4 Energy Discharges 40 | . . . . . . . 3 2 1 3 . . 4 1 5 5 2 . . . 2 . . . 6 . 3 1 1 1 Parts Rejected 6 | . . . . . . . 2 . . . . . . . . 1 . . . . 1 . . . 1 . . . . 1 Parts Fused 3 | . . . . . . . . . . . . . 1 . 1 . . . . . . . . . . . . . . 1 Data Loss (minor) 40 | . . . . . . . 2 4 1 1 1 . 2 1 2 7 1 1 . 1 2 1 . 1 3 1 1 2 2 3 Data Loss (major) 21 | . . . . . . . 2 3 . 2 . . . . 1 2 1 1 . . 1 2 . 1 1 . . . 1 3 Misfires 14 | . . . . . . . 4 3 . 2 . . . 1 . 3 . . . . . . . . . . . . . 1 Alerts 11 | . . . . . . . . 2 . 1 . . 1 . . 1 1 . . . . . . . 2 2 . . 1 . Misdirections 3 | . . . . . . . . . . . . . . . . . . . . . . . . . . . . . . 3 Weapon Failures 5 | . . . . . . . . 1 . . . . . . . . . . . . . . . . . . . . 1 3 Overload Shots . | . . . . . . . . . . . . . . . . . . . . . . . . . . . . . . . Overflow Damage 1661 | . 64 . . . . . 101 . 4 . . . . . . 77 . . 17 55 . . 84 219 940 25 . . 51 24 Projectiles 116 | . 12 . . . . . 101 . . . . . . . . . . . . . . . . . 3 . . . . . Explosions 242 | . 52 . . . . . . . 4 . . . . . . 65 . . 17 . . . . . 18 25 . . 51 10 Melee 1303 | . . . . . . . . . . . . . . . . 12 . . . 55 . . 84 219 919 . . . . 14 Knockbacks 31 | . . 1 1 . . . 9 . . . . . . . . 1 . . . 1 . . 2 2 12 . . . . 2 Impact 18 | . . 1 1 . . . . . . . . . . . . 1 . . . 1 . . 2 2 9 . . . . 1 Kinetic 9 | . . . . . . . 8 . . . . . . . . . . . . . . . . . . . . . . 1 Secondary 4 | . . . . . . . 1 . . . . . . . . . . . . . . . . . 3 . . . . . Self-Inflicted Damage 432 | . . . . . . . . . 15 28 . 46 124 . . . . . 101 . . . . . . 43 . . . 75 Shots 9 | . . . . . . . . . 1 1 . 1 4 . . . . . 1 . . . . . . 1 . . . . Rammed 43 | . 8 8 2 5 . 3 10 . . . . . . . . . . . . . . . . . . . . . . 7 Targets Rammed 61 | 1 8 9 2 6 . 4 13 6 . . . . 2 . . 2 . . . . . . . . 1 . . . . 7 Kicked 11 | . . . . . . . . 6 . . . . 2 . . 2 . . . . . . . . 1 . . . . . Crushed 7 | 1 . 1 . 1 . 1 3 . . . . . . . . . . . . . . . . . . . . . . . Highest Temperature 402 | . 370 195 133 . . 8 316 227 191 177 . 65 206 402 221 287 144 123 177 227 175 227 384 278 241 278 198 . 261 186 Average Temperature 74 | . 128 80 28 . . 8 67 38 95 92 . 41 50 159 56 80 58 52 43 101 87 114 169 143 100 100 98 . 150 85 Received Heat Transfer 4270 | . . 141 378 . . 252 1136 609 . 42 . . 199 . 145 270 . . 198 63 63 . 183 9 23 21 . . . 538 Effects 9 | . 3 . . . . . 2 . . . . . . 3 . . . . . . . . 1 . . . . . . . Shutdowns 1 | . . . . . . . 1 . . . . . . . . . . . . . . . . . . . . . . . Energy Bleed 2 | . . . . . . . 1 . . . . . . . . . . . . . . . 1 . . . . . . . Interference 6 | . 3 . . . . . . . . . . . . 3 . . . . . . . . . . . . . . . . Siege Activations . | . . . . . . . . . . . . . . . . . . . . . . . . . . . . . . . Martial Activations . | . . . . . . . . . . . . . . . . . . . . . . . . . . . . . . . Shielding Activations . | . . . . . . . . . . . . . . . . . . . . . . . . . . . . . . . Robots Disrupted . | . . . . . . . . . . . . . . . . . . . . . . . . . . . . . . . Combat Hostiles . | . . . . . . . . . . . . . . . . . . . . . . . . . . . . . . . Robots Corrupted 11 | . . . . . . 1 . 1 . . . . . . . . . . . . . . 1 2 6 . . . . . Combat Hostiles 10 | . . . . . . . . 1 . . . . . . . . . . . . . . 1 2 6 . . . . . Parts Fried 19 | . . . . . . 2 . 1 . . . . . . . 1 . . 2 . . . 3 . 10 . . . . . Impact Corruptions 38 | . . . . . . 1 1 . . . . . . . . 2 . . . 1 . . 5 5 23 . . . . . Robots Melted 2 | . . . . . . . . 1 . . . . . . 1 . . . . . . . . . . . . . . . Combat Hostiles 1 | . . . . . . . . . . . . . . . 1 . . . . . . . . . . . . . . . Parts Melted 31 | . 1 . . . . . . 16 . 2 . 1 5 . 3 2 . . 1 . . . . . . . . . . . Heat Transferred 18968 | . 1147 148 . . . . . 7441 . 410 . 385 4011 1242 1252 1753 559 100 520 . . . . . . . . . . . Parts Sabotaged 6 | . . . . . . . . . . . . . . . . . . . . . . . 6 . . . . . . . Parts Stolen . | . . . . . . . . . . . . . . . . . . . . . . . . . . . . . . . Parts Stripped . | . . . . . . . . . . . . . . . . . . . . . . . . . . . . . . . Power Chain Reactions 1 | . . . . . . . . . . . . . . . . . . . 1 . . . . . . . . . . . Alert | -11 -10 -10 -9 -9 -9 -8 -8 -7 -7 -7 -7 -6 -6 -6 -6 -6 -6 -6 -6 -5 -5 -5 -5 -4 -4 -4 -4 -4 -3 -3 ------- Run | Yrd Mat Min Mat Min Exi Min Mat Fac Low Low Zio Pro Fac Was Fac Ext Cet Arc Hub Fac Upp Upp War Pro Fac Upp Upp Zhi Pro Res Maximum Alert Level 3 | . . . 1 1 . . 3 2 . . . . 1 . 1 1 1 1 3 2 . . . . . . . . . 1 Low Security (%) 62 | 100 100 100 66 97 . 100 37 . . . . . 99 100 47 18 64 75 47 . . . . . 100 . . . . 77 Level 1 26 | . . . 33 2 . . 20 64 . . . . . . 52 81 35 24 10 82 . . . . . . . . . 22 Level 2 8 | . . . . . . . 21 35 . . . . . . . . . . 40 17 . . . . . . . . . . Level 3 2 | . . . . . . . 21 . . . . . . . . . . . 1 . . . . . . . . . . . Level 4 . | . . . . . . . . . . . . . . . . . . . . . . . . . . . . . . . Level 5 . | . . . . . . . . . . . . . . . . . . . . . . . . . . . . . . . High Security . | . . . . . . . . . . . . . . . . . . . . . . . . . . . . . . . Max Security . | . . . . . . . . . . . . . . . . . . . . . . . . . . . . . . . Sterilizations 1 | . . . . . . . 1 . . . . . . . . . . . . . . . . . . . . . . . Peak Influence 1011 | 15 179 145 372 211 . 142 861 678 . . . . 202 50 342 394 235 239 1011 494 . . . . 137 . . . . 327 Initial 494 | . 3 55 . 141 . . . 385 . . . . 64 50 . 126 204 58 47 494 . . . . 6 . . . . . Average 187 | 2 63 16 174 77 . 53 380 395 . . . . 75 4 166 297 187 180 251 345 . . . . 65 . . . . 84 Influence Increases 11592 | 25 445 203 922 215 . 362 1670 1034 175 20 . 376 629 . 788 750 171 239 1353 238 160 . 185 70 725 90 . . 15 732 Destroy 0b10 Robot/C 6240 | . 240 160 580 140 . 200 1000 640 140 20 . 200 300 . 240 380 80 80 480 140 120 . 60 60 460 80 . . . 440 Destroy 0b10 Robot/NC 660 | 25 50 5 35 10 . 10 85 110 . . . . 70 . 40 40 5 10 75 5 . . 5 . 45 . . . 15 20 Destroy Leader 1386 | . 50 30 160 20 . 40 262 158 20 . . 40 112 . 72 46 . . 114 22 10 . . 10 118 10 . . . 92 Allied During Kill 1024 | . . 8 25 . . . . . . . . 136 60 . 252 164 84 82 169 . . . . . . . . . . 44 Trap Triggered on 0b10 10 | . . . 10 . . . . . . . . . . . . . . . . . . . . . . . . . . . Successful Hack 126 | . 21 . 39 . . 5 37 6 . . . . . . . . . . . 2 . . . . 16 . . . . . Select Force Hacks 60 | . 30 . . . . . 30 . . . . . . . . . . . . . . . . . . . . . . . Disable Machine 660 | . . . 30 . . 45 45 30 . . . . 15 . 120 . . 60 255 15 . . . . 15 . . . . 30 Destroy Structure 601 | . 39 . 13 . . 17 16 30 . . . . 27 . 34 30 2 7 230 24 . . . . 56 . . . . 76 Partial Spotted 15 | . . . . . . . . . . . . . . . . . . . 15 . . . . . . . . . . . Lose Combat Pursuer 810 | . 15 . 30 45 . 45 195 60 15 . . . 45 . 30 90 . . 15 30 30 . 120 . 15 . . . . 30 Influence Decreases 11310 | 20 308 345 560 533 44 362 823 1188 487 401 . 273 588 144 529 643 392 247 479 983 426 . 133 112 604 220 1 . 15 450 Entered New Map 2475 | . 2 87 . 221 44 . . 462 257 74 . . 39 94 . 133 162 87 90 517 99 . . 52 4 50 1 . . . Time Decay 7474 | 20 306 236 470 312 . 352 683 686 230 327 . 193 439 50 337 510 90 140 210 446 307 . 83 60 580 160 . . 15 232 Lost Part 630 | . . 2 30 . . 10 140 40 . . . 20 30 . 10 . . . 30 20 20 . 50 . 20 10 . . . 198 Lost Ally 731 | . . 20 60 . . . . . . . . 60 80 . 182 . 140 20 149 . . . . . . . . . . 20 Squads Dispatched 65 | . 4 . 3 . . . 11 13 . . . . 7 . 2 . . . 9 2 . . . . 8 . . . . 6 Investigation 19 | . 3 . 2 . . . 4 3 . . . . . . . . . . 2 1 . . . . 3 . . . . 1 Extermination 23 | . . . . . . . . 5 . . . . 5 . 2 . . . 2 1 . . . . 5 . . . . 3 Reinforcement 18 | . 1 . 1 . . . 6 1 . . . . 2 . . . . . 5 . . . . . . . . . . 2 Assault 1 | . . . . . . . . 1 . . . . . . . . . . . . . . . . . . . . . . Garrison 4 | . . . . . . . 1 3 . . . . . . . . . . . . . . . . . . . . . . Intercept . | . . . . . . . . . . . . . . . . . . . . . . . . . . . . . . . Searches Triggered . | . . . . . . . . . . . . . . . . . . . . . . . . . . . . . . . Construction Impeded 4 | . . . . . . . 2 . . . . . . . . . . . 2 . . . . . . . . . . . Haulers Reinforced 3 | . . . . . . . . . . . . . 2 . . . . . . . . . . . . . . . . 1 Active Scanning Responses . | . . . . . . . . . . . . . . . . . . . . . . . . . . . . . . . Cargo Convoy Interrupts 1 | . . . . . . . . . . . . . 1 . . . . . . . . . . . . . . . . . Stealth | -11 -10 -10 -9 -9 -9 -8 -8 -7 -7 -7 -7 -6 -6 -6 -6 -6 -6 -6 -6 -5 -5 -5 -5 -4 -4 -4 -4 -4 -3 -3 --------- Run | Yrd Mat Min Mat Min Exi Min Mat Fac Low Low Zio Pro Fac Was Fac Ext Cet Arc Hub Fac Upp Upp War Pro Fac Upp Upp Zhi Pro Res Distress Signals 19 | . . . 2 . . . 7 1 . . . . 1 . 1 2 1 . 2 . . . . . 1 . . . . 1 Communications Jammed 23 | . . . . . . . . . . . . . . . . . . . . . . . . . 13 . . . 2 8 Distress Signals 20 | . . . . . . . . . . . . . . . . . . . . . . . . . 12 . . . . 8 Times Spotted 510 | . 17 6 42 10 . 13 79 49 5 1 . 10 26 . 17 22 4 7 22 11 8 . 98 3 28 4 . . 2 26 Peak Tracking Total 17 | . 3 3 8 4 . 3 7 5 3 1 . 3 3 . 4 8 5 2 6 4 4 . 17 2 4 4 . . 1 6 Tactical Retreats 37 | . 1 . 1 1 . 2 11 3 1 . . . 2 . 1 3 . . 1 2 2 . 3 . 1 . . . . 2 Traps | -11 -10 -10 -9 -9 -9 -8 -8 -7 -7 -7 -7 -6 -6 -6 -6 -6 -6 -6 -6 -5 -5 -5 -5 -4 -4 -4 -4 -4 -3 -3 ------- Run | Yrd Mat Min Mat Min Exi Min Mat Fac Low Low Zio Pro Fac Was Fac Ext Cet Arc Hub Fac Upp Upp War Pro Fac Upp Upp Zhi Pro Res Traps Triggered 24 | . 2 . 1 . . . 4 1 . . . . 3 . 2 1 . . 2 3 . . . . 4 . . . . 1 Indirectly 1 | . . . . . . . . . . . . . . . . . . . 1 . . . . . . . . . . . Trap Hack Attempts . | . . . . . . . . . . . . . . . . . . . . . . . . . . . . . . . Triggered . | . . . . . . . . . . . . . . . . . . . . . . . . . . . . . . . Disarmed . | . . . . . . . . . . . . . . . . . . . . . . . . . . . . . . . Reprogrammed 5 | . . . 5 . . . . . . . . . . . . . . . . . . . . . . . . . . . Reused 1 | . . . 1 . . . . . . . . . . . . . . . . . . . . . . . . . . . Traps Extracted . | . . . . . . . . . . . . . . . . . . . . . . . . . . . . . . . Installed . | . . . . . . . . . . . . . . . . . . . . . . . . . . . . . . . Triggered 1 | . . . 1 . . . . . . . . . . . . . . . . . . . . . . . . . . . Most Traps Carried 7 | . . . . 3 3 3 3 3 3 3 3 3 3 3 3 3 3 3 3 3 3 3 . . . . . . 7 7 Machines | -11 -10 -10 -9 -9 -9 -8 -8 -7 -7 -7 -7 -6 -6 -6 -6 -6 -6 -6 -6 -5 -5 -5 -5 -4 -4 -4 -4 -4 -3 -3 ---------- Run | Yrd Mat Min Mat Min Exi Min Mat Fac Low Low Zio Pro Fac Was Fac Ext Cet Arc Hub Fac Upp Upp War Pro Fac Upp Upp Zhi Pro Res Machines Disabled 47 | . . . 2 . . 3 3 2 . . . . 1 . 8 2 . 4 17 1 . . 1 . 1 . . . . 2 Max in Single Turn 14 | . . . 1 . . 2 1 1 . . . . 1 . 1 1 . 1 14 1 . . 1 . 1 . . . . 2 Garrison Access 5 | . . . . . . . 1 1 . . . . . . 1 . . . . 2 . . . . . . . . . . Network Hub 1 | . . . . . . . . . . . . . . . . . . . 1 . . . . . . . . . . . Energy Cycler 2 | . . . . . . . . . . . . . . . . 2 . . . . . . . . . . . . . . Machines Repaired . | . . . . . . . . . . . . . . . . . . . . . . . . . . . . . . . Machines Dismantled . | . . . . . . . . . . . . . . . . . . . . . . . . . . . . . . . Machines Sabotaged . | . . . . . . . . . . . . . . . . . . . . . . . . . . . . . . . Overloaded Fab Kills . | . . . . . . . . . . . . . . . . . . . . . . . . . . . . . . . Hacking | -11 -10 -10 -9 -9 -9 -8 -8 -7 -7 -7 -7 -6 -6 -6 -6 -6 -6 -6 -6 -5 -5 -5 -5 -4 -4 -4 -4 -4 -3 -3 --------- Run | Yrd Mat Min Mat Min Exi Min Mat Fac Low Low Zio Pro Fac Was Fac Ext Cet Arc Hub Fac Upp Upp War Pro Fac Upp Upp Zhi Pro Res Machines Accessed 90 | . 8 . 14 1 1 1 11 18 1 . . . 5 . 6 . . . . 8 1 . 1 . 9 . . 4 . 1 Terminals 37 | . 7 . 11 1 . 1 9 7 . . . . . . 1 . . . . . . . . . . . . . . . Fabricators 9 | . . . . . . . . 4 . . . . 1 . 1 . . . . 1 . . . . 2 . . . . . Repair Stations 4 | . . . 1 . . . . . . . . . . . 1 . . . . . . . . . 2 . . . . . Recycling Units 14 | . 1 . . . . . 1 3 . . . . 2 . 1 . . . . 3 . . . . 3 . . . . . Scanalyzers 9 | . . . 2 . . . . 2 . . . . 1 . 1 . . . . 2 . . . . 1 . . . . . Garrison Access 9 | . . . . . . . 1 2 . . . . 1 . 1 . . . . 2 . . . . 1 . . . . 1 Total Hacks 211 | . 18 . 44 3 1 2 31 36 1 . . . 7 . 8 . . . . 19 1 . 1 . 21 . . 17 . 1 Successful 101 | . 8 . 25 2 1 1 19 7 1 . . . . . 3 . . . . 9 1 . 1 . 6 . . 17 . . Failed 107 | . 10 . 18 1 . 1 12 28 . . . . 7 . 5 . . . . 9 . . . . 15 . . . . 1 Catastrophic 25 | . 2 . 5 . . . . 6 . . . . 2 . 1 . . . . 3 . . . . 5 . . . . 1 Database Lockouts 3 | . . . 1 . . . . 1 . . . . . . . . . . . 1 . . . . . . . . . . Manual 204 | . 15 . 23 . . . 23 12 . . . . 26 . 19 28 . . 16 14 . . . . 15 . . . . 13 Terminals 101 | . 17 . 35 3 . 2 28 15 . . . . . . 1 . . . . . . . . . . . . . . . Fabricators 22 | . . . . . . . . 9 . . . . 2 . 1 . . . . 4 . . . . 6 . . . . . Repair Stations 6 | . . . 2 . . . . . . . . . . . 2 . . . . . . . . . 2 . . . . . Recycling Units 28 | . 1 . . . . . 2 7 . . . . 2 . 2 . . . . 5 . . . . 9 . . . . . Scanalyzers 21 | . . . 7 . . . . 3 . . . . 1 . 1 . . . . 7 . . . . 2 . . . . . Garrison Access 12 | . . . . . . . 1 2 . . . . 2 . 1 . . . . 3 . . . . 2 . . . . 1 Terminal Hacks 44 | . 1 . 10 2 1 1 8 . 1 . . . . . 1 . . . . . 1 . 1 . . . . 17 . . Record 8 | . . . . 2 1 . . . . . . . . . . . . . . . . . . . . . . 5 . . Part Schematic 4 | . . . . . . . . . . . . . . . . . . . . . . . . . . . . 4 . . Robot Analysis 8 | . 1 . 1 . . . 2 . . . . . . . . . . . . . . . . . . . . 4 . . Prototype ID Bank 5 | . . . 1 . . . . . . . . . . . . . . . . . . . . . . . . 4 . . Open Door 4 | . . . . . . . . . 1 . . . . . 1 . . . . . 1 . 1 . . . . . . . Branch Access Points 1 | . . . 1 . . . . . . . . . . . . . . . . . . . . . . . . . . . Terminal Index 1 | . . . . . . . 1 . . . . . . . . . . . . . . . . . . . . . . . Reprogram Traps 4 | . . . 4 . . . . . . . . . . . . . . . . . . . . . . . . . . . Dispatch Records 1 | . . . . . . . 1 . . . . . . . . . . . . . . . . . . . . . . . Hauler Manifests 4 | . . . 2 . . . 2 . . . . . . . . . . . . . . . . . . . . . . . Zone Layout 4 | . . . 1 . . 1 2 . . . . . . . . . . . . . . . . . . . . . . . Fabricator Hacks 5 | . . . . . . . . 2 . . . . . . . . . . . 1 . . . . 2 . . . . . Network Status 2 | . . . . . . . . 2 . . . . . . . . . . . . . . . . . . . . . . Load Schematic 2 | . . . . . . . . . . . . . . . . . . . . 1 . . . . 1 . . . . . Build 1 | . . . . . . . . . . . . . . . . . . . . . . . . . 1 . . . . . Repair Station Hacks 2 | . . . 2 . . . . . . . . . . . . . . . . . . . . . . . . . . . Scan Component 1 | . . . 1 . . . . . . . . . . . . . . . . . . . . . . . . . . . Repair 1 | . . . 1 . . . . . . . . . . . . . . . . . . . . . . . . . . . Recycling Unit Hacks 5 | . . . . . . . . 2 . . . . . . 1 . . . . 1 . . . . 1 . . . . . Retrieve Components 5 | . . . . . . . . 2 . . . . . . 1 . . . . 1 . . . . 1 . . . . . Scanalyzer 13 | . . . 6 . . . . 1 . . . . . . . . . . . 5 . . . . 1 . . . . . Insert Component 1 | . . . . . . . . . . . . . . . . . . . . 1 . . . . . . . . . . Analyze 3 | . . . . . . . . . . . . . . . . . . . . 3 . . . . . . . . . . Retrieve Study 9 | . . . 6 . . . . 1 . . . . . . . . . . . 1 . . . . 1 . . . . . Garrison Access Hacks 5 | . . . . . . . 1 1 . . . . . . 1 . . . . 2 . . . . . . . . . . Seal Access 5 | . . . . . . . 1 1 . . . . . . 1 . . . . 2 . . . . . . . . . . Unauthorized Hacks 27 | . 7 . 7 . . . 10 1 . . . . . . . . . . . . . . . . 2 . . . . . Terminals 23 | . 6 . 7 . . . 9 1 . . . . . . . . . . . . . . . . . . . . . . Assimilate 2 | . . . . . . . 1 1 . . . . . . . . . . . . . . . . . . . . . . Botnet 4 | . 1 . 2 . . . 1 . . . . . . . . . . . . . . . . . . . . . . . Skim 17 | . 5 . 5 . . . 7 . . . . . . . . . . . . . . . . . . . . . . . Fabricators . | . . . . . . . . . . . . . . . . . . . . . . . . . . . . . . . Repair Stations 2 | . . . . . . . . . . . . . . . . . . . . . . . . . 2 . . . . . Patch 2 | . . . . . . . . . . . . . . . . . . . . . . . . . 2 . . . . . Recycling Units 2 | . 1 . . . . . 1 . . . . . . . . . . . . . . . . . . . . . . . Tunnel 2 | . 1 . . . . . 1 . . . . . . . . . . . . . . . . . . . . . . . Scanalyzers . | . . . . . . . . . . . . . . . . . . . . . . . . . . . . . . . Garrison Access . | . . . . . . . . . . . . . . . . . . . . . . . . . . . . . . . Data Cores Recovered 1 | . . . . . . . . . . . . . . . 1 . . . . . . . . . . . . . . . Used . | . . . . . . . . . . . . . . . . . . . . . . . . . . . . . . . Hacking Detections 63 | . 7 . 13 1 . . 8 15 . . . . 5 . 4 . . . . 4 . . . . 5 . . . . 1 Full Trace Events 4 | . . . . . . . . 2 . . . . . . . . . . . 1 . . . . 1 . . . . . Feedback Events . | . . . . . . . . . . . . . . . . . . . . . . . . . . . . . . . Feedback Blocked . | . . . . . . . . . . . . . . . . . . . . . . . . . . . . . . . Robot Schematics Acquired 17 | . . . . . . . . . . . 3 . 5 . . 6 . . 3 . . . . . . . . . . . Robots Built . | . . . . . . . . . . . . . . . . . . . . . . . . . . . . . . . Authchips . | . . . . . . . . . . . . . . . . . . . . . . . . . . . . . . . Time . | . . . . . . . . . . . . . . . . . . . . . . . . . . . . . . . Total Robot Build Rating . | . . . . . . . . . . . . . . . . . . . . . . . . . . . . . . . Part Schematics Acquired 72 | . . . . . . . . . . . 14 . 43 . 10 . . . . 1 . . . . . . . 4 . . Parts Built 2 | . . . . . . . . . . . . . . . . . . . . . . . . . 2 . . . . . Authchips . | . . . . . . . . . . . . . . . . . . . . . . . . . . . . . . . Time 84 | . . . . . . . . . . . . . . . . . . . . . . . . . 84 . . . . . Total Part Build Rating 8 | . . . . . . . . . . . . . . . . . . . . . . . . . 8 . . . . . Part Studies Acquired 8 | . . . 5 . . . . 1 . . . . . . . . . . . 1 . . . . 1 . . . . . Parts Repaired 1 | . . . 1 . . . . . . . . . . . . . . . . . . . . . . . . . . . Time 32 | . . . 32 . . . . . . . . . . . . . . . . . . . . . . . . . . . Parts Recycled . | . . . . . . . . . . . . . . . . . . . . . . . . . . . . . . . Recycled Matter . | . . . . . . . . . . . . . . . . . . . . . . . . . . . . . . . Retrieved Matter . | . . . . . . . . . . . . . . . . . . . . . . . . . . . . . . . Retrieved Components 21 | . . . . . . . . 4 . . . . . . . . . . . 7 . . . . 10 . . . . . Parts Scanalyzed 1 | . . . . . . . . . . . . . . . . . . . . 1 . . . . . . . . . . Part Schematics Acquired 1 | . . . . . . . . . . . . . . . . . . . . 1 . . . . . . . . . . Parts Damaged . | . . . . . . . . . . . . . . . . . . . . . . . . . . . . . . . Bothacking | -11 -10 -10 -9 -9 -9 -8 -8 -7 -7 -7 -7 -6 -6 -6 -6 -6 -6 -6 -6 -5 -5 -5 -5 -4 -4 -4 -4 -4 -3 -3 ------------ Run | Yrd Mat Min Mat Min Exi Min Mat Fac Low Low Zio Pro Fac Was Fac Ext Cet Arc Hub Fac Upp Upp War Pro Fac Upp Upp Zhi Pro Res Used RIF Installer . | . . . . . . . . . . . . . . . . . . . . . . . . . . . . . . . Robots Hacked 1 | . . . . . . . . . . . . . . . . . . 1 . . . . . . . . . . . . Non-combat . | . . . . . . . . . . . . . . . . . . . . . . . . . . . . . . . Combat 1 | . . . . . . . . . . . . . . . . . . 1 . . . . . . . . . . . . Robot Hacks Applied 1 | . . . . . . . . . . . . . . . . . . 1 . . . . . . . . . . . . parse_system 1 | . . . . . . . . . . . . . . . . . . 1 . . . . . . . . . . . . Relay Couplers Released 3 | . . . . . . . . . . . . . 3 . . . . . . . . . . . . . . . . . Programmers 3 | . . . . . . . . . . . . . 3 . . . . . . . . . . . . . . . . . Fabnet Peak Effective % . | . . . . . . . . . . . . . . . . . . . . . . . . . . . . . . . Robots Rewired 16 | . . . . . . . . . . . . . . . . 16 . . . . . . . . . . . . . . Allies Hacked 1 | . . . . . . . . . . . . . 1 . . . . . . . . . . . . . . . . . Hacks Repelled . | . . . . . . . . . . . . . . . . . . . . . . . . . . . . . . . Allies | -11 -10 -10 -9 -9 -9 -8 -8 -7 -7 -7 -7 -6 -6 -6 -6 -6 -6 -6 -6 -5 -5 -5 -5 -4 -4 -4 -4 -4 -3 -3 -------- Run | Yrd Mat Min Mat Min Exi Min Mat Fac Low Low Zio Pro Fac Was Fac Ext Cet Arc Hub Fac Upp Upp War Pro Fac Upp Upp Zhi Pro Res Total Allies 56 | . . 5 . . . . . . . . 8 . . 20 . 19 . . . 1 . . . . 1 . . . . 2 Largest Group 20 | . . 3 3 . . . . . . . 8 8 5 20 16 18 18 11 10 1 . . . . 1 . . . . 2 Highest-Rated Group 801 | . . 54 40 . . . . . . . 242 242 179 801 601 595 595 372 349 31 . . . . 27 . . . . 206 Highest-Rated Ally 103 | . . 31 16 . . . . . . . 42 42 42 50 46 85 77 77 77 31 . . . . 27 . . . . 103 Zionite Dispatches 4 | . . . . . . . . . . . . . . . . 1 . . . 1 . . . . 1 . . . . 1 Heavy 2 | . . . . . . . . . . . . . . . . 1 . . . . . . . . . . . . . 1 Melee Resupply 1 | . . . . . . . . . . . . . . . . . . . . . . . . . 1 . . . . . Defense Resupply 1 | . . . . . . . . . . . . . . . . . . . . 1 . . . . . . . . . . Total Orders 5 | . . . . . . . . . . . . . . . . . . . 1 2 . . . . 2 . . . . . STAY 3 | . . . . . . . . . . . . . . . . . . . 1 1 . . . . 1 . . . . . DROP 2 | . . . . . . . . . . . . . . . . . . . . 1 . . . . 1 . . . . . Ally Attacks 435 | . . 13 20 . . . . . . . . 74 46 . 108 41 32 18 58 . . . . . . . . . . 25 Total Damage 9921 | . . 189 192 . . . . . . . . 665 706 . 2594 1531 813 468 1028 . . . . . . . . . . 1735 Kills 79 | . . 2 3 . . . . . . . . 6 6 . 17 16 4 3 12 . . . . . . . . . . 10 Allies Corrupted . | . . . . . . . . . . . . . . . . . . . . . . . . . . . . . . . Allies Melted 1 | . . . . . . . . . . . . . . . 1 . . . . . . . . . . . . . . . Intel | -11 -10 -10 -9 -9 -9 -8 -8 -7 -7 -7 -7 -6 -6 -6 -6 -6 -6 -6 -6 -5 -5 -5 -5 -4 -4 -4 -4 -4 -3 -3 ------- Run | Yrd Mat Min Mat Min Exi Min Mat Fac Low Low Zio Pro Fac Was Fac Ext Cet Arc Hub Fac Upp Upp War Pro Fac Upp Upp Zhi Pro Res Active Infowar (turns) 17796 | 40 1097 . 1493 . . . 84 1856 488 877 1702 428 1306 . 98 50 . . . 998 857 481 1523 280 2084 325 400 182 380 767 Sensors 13795 | . . . . . . . . 1856 488 877 1702 428 1306 . 18 50 . . . 998 801 481 1521 . 1556 294 400 182 369 468 Seismic 2714 | 40 1097 . 1493 . . . 84 . . . . . . . . . . . . . . . . . . . . . . . T.N.C. 21 | . . . . . . . . . . . . . . . 21 . . . . . . . . . . . . . . . Jamming 4534 | . . . . . . . . . . . . . . . 59 . . . . . 71 . 2 280 2075 325 400 175 380 767 Robot Analysis Total 8 | . 1 . 1 . . . 2 . . . . . . . . . . . . . . . . . . . . 4 . . Derelict Logs Recovered 10 | . . 2 . 3 . . . . . . 2 . . . . . . . . . . 1 . . . . 2 . . . Drone Launches . | . . . . . . . . . . . . . . . . . . . . . . . . . . . . . . . Drone Recoveries . | . . . . . . . . . . . . . . . . . . . . . . . . . . . . . . . Zionite Intel Received 28 | . . . . . . . . . . . . . 7 . 5 7 . . 4 1 . . . . 2 . . . . 2 Branch Access 2 | . . . . . . . . . . . . . . . 1 . . . . . . . . . . . . . . 1 Emergency Access 4 | . . . . . . . . . . . . . . . 1 1 . . 1 . . . . . . . . . . 1 Guard Positions 2 | . . . . . . . . . . . . . 1 . . . . . . . . . . . 1 . . . . . Component Stockpiles 1 | . . . . . . . . . . . . . . . . 1 . . . . . . . . . . . . . . Prototype Stockpiles 3 | . . . . . . . . . . . . . 1 . . . . . . 1 . . . . 1 . . . . . Component Schematics 3 | . . . . . . . . . . . . . 3 . . . . . . . . . . . . . . . . . Prototype Schematics 1 | . . . . . . . . . . . . . . . 1 . . . . . . . . . . . . . . . Unaware Schematics 4 | . . . . . . . . . . . . . 1 . . 2 . . 1 . . . . . . . . . . . Unaware Analyses 4 | . . . . . . . . . . . . . . . 1 3 . . . . . . . . . . . . . . Active Terminals 1 | . . . . . . . . . . . . . . . . . . . 1 . . . . . . . . . . . Active Garrisons 3 | . . . . . . . . . . . . . 1 . 1 . . . 1 . . . . . . . . . . . Exploration | -11 -10 -10 -9 -9 -9 -8 -8 -7 -7 -7 -7 -6 -6 -6 -6 -6 -6 -6 -6 -5 -5 -5 -5 -4 -4 -4 -4 -4 -3 -3 ------------- Run | Yrd Mat Min Mat Min Exi Min Mat Fac Low Low Zio Pro Fac Was Fac Ext Cet Arc Hub Fac Upp Upp War Pro Fac Upp Upp Zhi Pro Res Turns Passed 32238 | 123 1796 1738 1771 872 721 860 2864 2756 495 921 1702 428 1741 714 1154 1397 180 280 718 1117 883 481 1553 379 2129 325 400 182 380 1178 Spaces Moved 19435 | 54 634 639 863 520 451 480 1048 1737 391 746 1354 263 1311 552 832 786 109 82 489 817 614 371 1080 206 1330 278 348 149 315 586 Core 192 | 4 . . . . . . . . . . . . . . . . . . . . . . . . . . . . . 188 Treads 4685 | 50 634 639 863 520 451 480 1048 . . . . . . . . . . . . . . . . . . . . . . . Legs 14544 | . . . . . . . . 1737 391 746 1354 263 1311 552 832 786 109 82 489 817 614 371 1080 206 1330 278 348 149 315 384 Wheels 14 | . . . . . . . . . . . . . . . . . . . . . . . . . . . . . . 14 Hover . | . . . . . . . . . . . . . . . . . . . . . . . . . . . . . . . Flight . | . . . . . . . . . . . . . . . . . . . . . . . . . . . . . . . Fastest Speed 50 | 50 160 240 160 160 160 160 155 115 121 121 121 121 111 113 116 118 118 118 116 116 120 120 110 115 103 108 108 114 114 50 Average Speed 135 | 151 215 240 160 160 160 160 200 123 121 121 121 121 112 113 119 119 118 118 117 117 120 120 117 159 113 108 109 114 114 128 Slowest Speed 500 | 160 240 240 160 160 160 160 305 193 121 121 121 121 121 116 122 120 118 118 118 190 120 120 400 185 185 108 114 184 114 500 Overloaded Moves . | . . . . . . . . . . . . . . . . . . . . . . . . . . . . . . . Propulsion Burnouts . | . . . . . . . . . . . . . . . . . . . . . . . . . . . . . . . Robots Hopped 1 | . . . . . . . . . . . . . . . . . . . . . . . 1 . . . . . . . Potential Cave-ins . | . . . . . . . . . . . . . . . . . . . . . . . . . . . . . . . Cave-ins Triggered . | . . . . . . . . . . . . . . . . . . . . . . . . . . . . . . . Exploration Rate (%) 62 | 4 91 99 85 88 88 98 95 45 64 68 89 62 38 89 26 86 47 70 44 26 73 52 86 38 29 50 65 60 52 21 Regions Visited 30 Branch Regions 20 Pre-discovered Areas 15 | . 3 . 3 1 . . 3 . . . 2 . . . . . . . . . . . . . . . . 3 . . Known Exits Taken 26 | . 1 1 1 1 . 1 1 1 1 1 1 1 . . 1 1 1 1 1 1 1 1 1 1 1 1 1 1 1 . Unknown Exits Taken 2 | 1 . . . . 1 . . . . . . . . . . . . . . . . . . . . . . . . . Scrap Searched 23 | . . 2 . 1 . 1 . . 4 1 2 1 . . . . . . . . 1 4 . . . 2 2 . 2 . Spaces Dug 237 | . 36 . 16 . . . . 2 21 . . 6 18 . 4 . . . 7 12 22 2 . . 28 . 3 . 49 11 Terrain Destroyed 807 | . 52 . 16 . . 34 11 28 44 4 . 17 28 . 4 40 . 8 246 12 39 2 3 . 28 93 3 . 61 34 Melee 61 | . . . . . . . . 2 1 . . . 1 . 4 . . . . 12 3 2 . . 28 . 3 . . 5 Projectile 84 | . . . . . . . 11 . . . . . . . . 1 . 8 38 . 5 . 1 . . . . . . 20 AOE 662 | . 52 . 16 . . 34 . 26 43 4 . 17 27 . . 39 . . 208 . 31 . 2 . . 93 . . 61 9 Terrain Rammed 9 | . . . . . . . . . . . . . . . . . . . . . . . . . . . . . . 9 Walls Destroyed . | . . . . . . . . . . . . . . . . . . . . . . . . . . . . . . . Machines Disabled . | . . . . . . . . . . . . . . . . . . . . . . . . . . . . . . . Actions | -11 -10 -10 -9 -9 -9 -8 -8 -7 -7 -7 -7 -6 -6 -6 -6 -6 -6 -6 -6 -5 -5 -5 -5 -4 -4 -4 -4 -4 -3 -3 --------- Run | Yrd Mat Min Mat Min Exi Min Mat Fac Low Low Zio Pro Fac Was Fac Ext Cet Arc Hub Fac Upp Upp War Pro Fac Upp Upp Zhi Pro Res Total 23646 | 77 1009 814 1103 538 450 518 1469 2061 404 755 1416 352 1460 618 950 1194 149 251 568 918 739 404 1360 239 1785 293 361 163 327 901 Wait 2155 | . 302 145 84 2 . . 188 68 . 3 46 75 36 10 71 154 26 145 23 13 92 22 197 22 263 . 7 . . 161 Move 19404 | 53 633 638 862 519 450 479 1047 1736 390 745 1353 262 1311 551 831 785 108 81 488 816 613 370 1077 205 1329 277 347 148 314 586 Hop 1 | . . . . . . . . . . . . . . . . . . . . . . . 1 . . . . . . . Pick Up 134 | 8 19 1 13 . . . 12 15 1 . 2 . 12 3 2 4 1 2 1 5 2 4 11 1 9 . . 2 1 3 Fast Attach 198 | 7 2 1 6 . . . 10 27 . . 5 1 6 14 3 7 3 5 4 11 1 3 26 1 35 1 1 6 . 12 Attach 67 | . . . 3 . . 1 17 5 . . . . 5 1 1 . . . 1 8 3 . 6 1 6 2 . . . 7 Detach 41 | . . . . . . . 5 1 . . . . 1 3 1 1 . 1 1 9 3 . 4 . 8 1 1 . . 1 Swap 186 | . 8 5 16 2 . 4 16 27 6 4 2 2 17 2 10 12 . 2 1 8 6 . 2 . 20 4 1 . 6 3 Drop 268 | . 10 4 27 . . 2 16 49 1 . 7 . 12 19 9 14 4 5 4 10 2 3 29 . 20 1 1 7 1 11 Fire 712 | 8 27 11 90 9 . 28 145 125 5 3 . 12 55 11 17 31 7 9 45 . 13 . 4 . 2 6 . . 4 45 Melee 226 | . . . . . . . . 2 1 . 1 . 2 4 5 1 . 1 . 38 4 2 3 9 92 1 3 . 1 56 Ram 16 | . . . . . . . . . . . . . . . . . . . . . . . . . . . . . . 16 Kick 11 | . . . . . . . . 6 . . . . 2 . . 2 . . . . . . . . 1 . . . . . Crush 43 | 1 8 9 2 6 . 4 13 . . . . . . . . . . . . . . . . . . . . . . . Escape Stasis . | . . . . . . . . . . . . . . . . . . . . . . . . . . . . . . . Rewire 184 | . . . . . . . . . . . . . 1 . . 183 . . . . . . . . . . . . . . Trap . | . . . . . . . . . . . . . . . . . . . . . . . . . . . . . . . Miscellaneous . | . . . . . . . . . . . . . . . . . . . . . . . . . . . . . . . Route ------- -11/Scrapyard -10/Materials (discovered 4 exits: *Mat x3 / *Min) -10/Mines (discovered 3 exits: *Mat x2 / *Sub) -9/Materials (discovered 5 exits: *Mat x3 / *Min x2) -9/Mines (discovered 4 exits: *Mat x2 / *Exi / *Zio) -9/Exiles -8/Mines (discovered 2 exits: *Mat x2) -8/Materials (discovered 3 exits: *Fac x3) -7/Factory (discovered 4 exits: *Fac x2 / *Low x2) -7/Lower Caves -7/Lower Caves -7/Zion -6/Proximity Caves -6/Factory (discovered 3 exits: *Fac x2 / *Low) -6/Waste -6/Factory (discovered 4 exits: Low x2 / *Ext x2) -6/Extension (discovered 3 exits: *Fac x2 / *Cet) -6/Cetus -6/Archives (discovered 2 exits: *Hub x2) -6/Hub_04(d) (discovered 2 exits: *Fac x2) -5/Factory (discovered 3 exits: *Fac x2 / *Upp) -5/Upper Caves -5/Upper Caves -5/Warlord -4/Proximity Caves -4/Factory (discovered 2 exits: *Res / *Upp) -4/Upper Caves -4/Upper Caves (discovered 2 exits: *Res / *Zhi) -4/Zhirov -3/Proximity Caves -3/Research (discovered 2 exits: Tes x2) History --------- Turn | Location | Event 26 | -11/Scrapyard | Discovered new exit (range 15) 124 | -11/Scrapyard | Entered Materials 312 | -10/Materials | Build established: Mutant 430 | -10/Materials | Learned location of 1 exit from Recycling 453 | -10/Materials | Learned location of Storage (-7) 464 | -10/Materials | Learned location of 2 exits from Subcaves 465 | -10/Materials | Loaded intel: 1 repair station location 466 | -10/Materials | Learned location of 2 exits from Subcaves 467 | -10/Materials | Identified exit to Mines 468 | -10/Materials | Learned location of 2 exits from Mines 804 | -10/Materials | Discovered new exit (range 8) 1364 | -10/Materials | Discovered new exit (range 5) 1751 | -10/Materials | Discovered new exit (range 10) 1920 | -10/Materials | Entered Mines 1921 | -10/Mines | Identified exit to Materials 1921 | -10/Mines | Identified exit to Subcaves 1989 | -10/Mines | Assembled infested the area 2389 | -10/Mines | Discovered exit to Materials (range 6) 2434 | -10/Mines | Found a Scrap Suit stashed away for nefarious purposes 2468 | -10/Mines | Learned Materials machine intel 2894 | -10/Mines | Assisted by bots powering up and referring to "LRC-V3" 3195 | -10/Mines | Learned Materials terminal intel 3658 | -10/Mines | Entered Materials 3658 | -9/Materials | Accompanied by 3 allies 3658 | -9/Materials | Evolved 2 slots: Propulsion x1, Utility x1 3659 | -9/Materials | Identified exit to Mines 3660 | -9/Materials | Loaded intel: 59 machine locations 3661 | -9/Materials | Loaded intel: 12 terminal locations 3717 | -9/Materials | Repaired Autogun 4101 | -9/Materials | Lost 3 allies 4315 | -9/Materials | Build established: Scavenger-Mutant 4386 | -9/Materials | Discovered new exit (range 5) 4526 | -9/Materials | Identified exit to Materials 4568 | -9/Materials | Loaded intel: 15 trap records 4602 | -9/Materials | Learned location of Zion (-7) 4624 | -9/Materials | Learned Storage trap positions 4873 | -9/Materials | Central database locked down 5429 | -9/Materials | Entered Mines 5444 | -9/Mines | Core integrity fell below 50% 5477 | -9/Mines | A Derelict revealed a hidden shortcut to a safe place 5540 | -9/Mines | Learned Materials interactive machine intel 5596 | -9/Mines | Identified exit to Exiles 5876 | -9/Mines | Found a hidden stash of uninstalled traps 5916 | -9/Mines | Received a Rocket Launcher from a helpful Derelict 6105 | -9/Mines | Deemed a non-threat by the Exiles lab entrance 6301 | -9/Mines | Entered Exiles 6301 | -9/Exiles | Found Exiles lab abandoned 7001 | -9/Exiles | Discovered new exit (range 15) 7022 | -9/Exiles | Entered Mines 7439 | -8/Mines | Discovered exit to Materials (range 14) 7612 | -8/Mines | Discovered exit to Materials (range 12) 7882 | -8/Mines | Entered Materials 7882 | -8/Materials | Evolved 2 slots: Utility x1, Weapon x1 7883 | -8/Materials | Loaded intel: 19 interactive machine locations 8142 | -8/Materials | Garrison activated, responded to threat 8399 | -8/Materials | Learned 2 Lower Caves zone layouts 8497 | -8/Materials | Discovered new exit (range 8) 8517 | -8/Materials | Learned Factory emergency access door positions 8560 | -8/Materials | Learned location of Recycling (-7) 8591 | -8/Materials | Learned location of 1 exit from Recycling 8738 | -8/Materials | Discovered new exit (range 16) 8774 | -8/Materials | Build established: Tank 9100 | -8/Materials | Identified exit to Factory 9444 | -8/Materials | Core integrity fell below 50% 9458 | -8/Materials | Lost 5 parts (1p2n2w) 9717 | -8/Materials | Build established: Scavenger-Gunner 10606 | -8/Materials | Sterilization system engaged 10606 | -8/Materials | Non-combat units ordered to evacuate 10706 | -8/Materials | Combat units ordered to evacuate 10746 | -8/Materials | Entered Factory 10746 | -7/Factory | Evolved 2 slots: Propulsion x1, Utility x1 10747 | -7/Factory | Identified exit to Lower Caves 11056 | -7/Factory | Build established: Scavenger-Skirmisher 11707 | -7/Factory | Garrison activated, responded to threat 11977 | -7/Factory | Discovered new exit (range 14) 12016 | -7/Factory | Identified exit to Factory 12331 | -7/Factory | Discovered exit to Factory (range 8) 12940 | -7/Factory | Discovered exit to Lower Caves (range 6) 12950 | -7/Factory | Central database locked down 13071 | -7/Factory | Build established: Scavenger-Gunner 13141 | -7/Factory | Found Powered Armor 13146 | -7/Factory | First assault squad dispatched 13502 | -7/Factory | Entered Lower Caves 13591 | -7/Lower Caves | Encountered a Warlord checkpoint 13668 | -7/Lower Caves | Spotted B-75 Beast 13976 | -7/Lower Caves | Discovered new exit (range 11) 13988 | -7/Lower Caves | Identified exit to Lower Caves 13997 | -7/Lower Caves | Entered another Lower Caves area 14026 | -7/Lower Caves | Attracted the attention of an 0b10 checkpoint 14086 | -7/Lower Caves | Encountered a Warlord checkpoint 14229 | -7/Lower Caves | Discovered new exit (range 7) 14236 | -7/Lower Caves | Identified exit to Zion 14370 | -7/Lower Caves | Build established: Scavenger-Skirmisher 14918 | -7/Lower Caves | Entered Zion 14956 | -7/Zion | System corruption cleaned by Quarantine Array 15059 | -7/Zion | Discovered new exit (range 12) 15229 | -7/Zion | Found Relay Coupler [Programmer] 15457 | -7/Zion | Learned Factory stockpile data 15478 | -7/Zion | Acquired unknown access codes intercepted by a Zionite 15565 | -7/Zion | Learned location of Armory (-4) 15592 | -7/Zion | Found Prototype Device 15592 | -7/Zion | Identified Mobile Refinery Mk. CCLXVII 15669 | -7/Zion | Gained Derelict followers 15700 | -7/Zion | Learned location of Warlord (-5) 15955 | -7/Zion | Met Imprinter 16313 | -7/Zion | Imprinted 16315 | -7/Zion | Declared Zion's savior 16570 | -7/Zion | Identified exit to Proximity Caves 16620 | -7/Zion | Entered Proximity Caves 16620 | -6/Proximity Caves | Accompanied by 8 allies 16873 | -6/Proximity Caves | Lost 3 allies 17048 | -6/Proximity Caves | Entered Factory 17048 | -6/Factory | Accompanied by 5 allies 17048 | -6/Factory | Evolved 2 slots: Propulsion x1, Utility x1 17049 | -6/Factory | Identified exit to Lower Caves 17174 | -6/Factory | Retrieved Zion intel report: Prototype Stockpiles 17303 | -6/Factory | Retrieved Zion intel report: Component Schematics 17318 | -6/Factory | Retrieved Zion intel report: Unaware Schematics 17353 | -6/Factory | Retrieved Zion intel report: Component Schematics 17385 | -6/Factory | Build established: Skirmisher 17485 | -6/Factory | Retrieved Zion intel report: Active Garrisons 17591 | -6/Factory | Discovered new exit (range 15) 17605 | -6/Factory | Identified exit to Factory 17663 | -6/Factory | Retrieved Zion intel report: Guard Positions 17759 | -6/Factory | Retrieved Zion intel report: Component Schematics 18267 | -6/Factory | Terminal network hard line cut 18286 | -6/Factory | Discovered exit to Factory (range 11) 18368 | -6/Factory | Cargo convoy interrupted 18789 | -6/Factory | Sucked down chute 18789 | -6/Factory | Entered Waste 18790 | -6/Waste | Joined by Warlord forces that had cleared the area 19110 | -6/Waste | Discovered new exit (range 16) 19230 | -6/Waste | Build established: Scavenger-Gunner 19239 | -6/Waste | Found Prototype Device 19239 | -6/Waste | Identified Exp. Thermal Defense Suite 19467 | -6/Waste | Identified exit to Factory 19503 | -6/Waste | Entered Factory 19503 | -6/Factory | Accompanied by 16 allies 19519 | -6/Factory | Murdered 4 allies 19679 | -6/Factory | Retrieved Zion intel report: Prototype Schematics 19697 | -6/Factory | Retrieved Zion intel report: Unaware Analyses 19712 | -6/Factory | Retrieved Zion intel report: Emergency Access 19736 | -6/Factory | Retrieved Zion intel report: Active Garrisons 19780 | -6/Factory | Build established: Mutant 19796 | -6/Factory | Spotted B-75 Beast 19811 | -6/Factory | Allies destroyed B-75 Beast 19907 | -6/Factory | Discovered new exit (range 6) 19911 | -6/Factory | Identified exit to Extension 19955 | -6/Factory | Retrieved Zion intel report: Branch Access 19963 | -6/Factory | Lost 4 allies 20099 | -6/Factory | Build established: Scavenger-Gunner 20251 | -6/Factory | Lost 6 allies 20657 | -6/Factory | Entered Extension 20799 | -6/Extension | Retrieved Zion intel report: Unaware Analyses 20864 | -6/Extension | Retrieved Zion intel report: Unaware Schematics 20869 | -6/Extension | Retrieved Zion intel report: Emergency Access 20877 | -6/Extension | Energy Cycler disabled 20877 | -6/Extension | Rescued a captive Derelict 20878 | -6/Extension | Rescued a captive Derelict 20878 | -6/Extension | Rescued a captive Derelict 20880 | -6/Extension | Rescued a captive Derelict 20883 | -6/Extension | Rescued a captive Derelict 20883 | -6/Extension | Rescued a captive Derelict 20884 | -6/Extension | Retrieved Zion intel report: Component Stockpiles 20885 | -6/Extension | Rescued a captive Derelict 20885 | -6/Extension | Rescued a captive Derelict 20893 | -6/Extension | Retrieved Zion intel report: Unaware Analyses 20903 | -6/Extension | Retrieved Zion intel report: Unaware Analyses 20904 | -6/Extension | Zion Heavy squad teleported in 21004 | -6/Extension | Build established: Gunner 21498 | -6/Extension | Spotted B-75 Beast 21513 | -6/Extension | Allies destroyed B-75 Beast 21518 | -6/Extension | Discovered exit to Factory (range 15) 21546 | -6/Extension | Extracted ID and sensor layout for unrecognized location from A7's data core 21635 | -6/Extension | Retrieved Zion intel report: Unaware Schematics 21707 | -6/Extension | Build established: Commander-Gunner 21922 | -6/Extension | Discovered exit to Factory (range 10) 21924 | -6/Extension | Discovered new exit (range 6) 21931 | -6/Extension | Identified exit to Cetus 22050 | -6/Extension | Terminal network hard line cut 22054 | -6/Extension | Entered Cetus 22054 | -6/Cetus | Accompanied by 18 allies 22069 | -6/Cetus | Spotted Cetus Guard 22069 | -6/Cetus | Spotted Cetus Guard 22075 | -6/Cetus | Spotted Cetus Guard 22076 | -6/Cetus | Spotted Cetus Guard 22081 | -6/Cetus | Allies destroyed Cetus Guard 22089 | -6/Cetus | Allies destroyed Cetus Guard 22095 | -6/Cetus | Destroyed Cetus Guard 22096 | -6/Cetus | Allies destroyed Cetus Guard 22127 | -6/Cetus | Lost 7 allies 22187 | -6/Cetus | Discovered new exit (range 16) 22203 | -6/Cetus | Identified exit to Archives 22234 | -6/Cetus | Entered Archives 22234 | -6/Archives | Accompanied by 11 allies 22276 | -6/Archives | Discovered new exit (range 15) 22471 | -6/Archives | Discovered new exit (range 15) 22487 | -6/Archives | Identified exit to Hub_04(d) 22514 | -6/Archives | Entered Hub_04(d) 22514 | -6/Hub_04(d) | Accompanied by 10 allies 22552 | -6/Hub_04(d) | Retrieved Zion intel report: Active Terminals 22635 | -6/Hub_04(d) | Retrieved Zion intel report: Emergency Access 22717 | -6/Hub_04(d) | Retrieved Zion intel report: Active Garrisons 22753 | -6/Hub_04(d) | Discovered exit to Factory (range 16) 22871 | -6/Hub_04(d) | Discovered exit to Factory (range 15) 23026 | -6/Hub_04(d) | Retrieved Zion intel report: Unaware Schematics 23220 | -6/Hub_04(d) | Network Hub disabled 23232 | -6/Hub_04(d) | Entered Factory 23232 | -5/Factory | Evolved 2 slots: Power x1, Utility x1 23244 | -5/Factory | Zion Defense Resupply teleported in 23570 | -5/Factory | Discovered new exit (range 7) 23579 | -5/Factory | Identified exit to Factory 23637 | -5/Factory | Build established: Messiah-Gladiator 23765 | -5/Factory | Found Prototype Processor 23765 | -5/Factory | Identified Exp. Targeting Computer 23860 | -5/Factory | Central database locked down 23970 | -5/Factory | Build established: Gladiator 23995 | -5/Factory | Retrieved Zion intel report: Prototype Stockpiles 24110 | -5/Factory | Discovered exit to Factory (range 10) 24130 | -5/Factory | Discovered new exit (range 7) 24143 | -5/Factory | Identified exit to Upper Caves 24349 | -5/Factory | Entered Upper Caves 25075 | -5/Upper Caves | Build established: Mutant 25081 | -5/Upper Caves | Discovered new exit (range 5) 25085 | -5/Upper Caves | Identified exit to Upper Caves 25232 | -5/Upper Caves | Entered another Upper Caves area 25602 | -5/Upper Caves | Identified exit to Warlord 25713 | -5/Upper Caves | Entered Warlord 26011 | -5/Warlord | Received a Watcher feed algorithm from an ecstatic Tinkerer 26184 | -5/Warlord | Found Prototype Reactor 26184 | -5/Warlord | Identified Vortex Chain Reactor 26213 | -5/Warlord | Found Prototype Device 26213 | -5/Warlord | Identified Exp. Focal Shield 26252 | -5/Warlord | Found Prototype Hackware 26414 | -5/Warlord | Warlord's base attacked by MAIN.C 26467 | -5/Warlord | Found Prototype Piercing Weapon 26467 | -5/Warlord | Identified Vortex Lance 26470 | -5/Warlord | Found Vortex Lance 26473 | -5/Warlord | Found Vortex Lance 26476 | -5/Warlord | Found Vortex Lance 26576 | -5/Warlord | Spotted B-75 Beast 26700 | -5/Warlord | Warlord forces counterattacked 26750 | -5/Warlord | Spotted Executioner 26758 | -5/Warlord | Spotted B-86 Titan 26796 | -5/Warlord | Found Prototype Processor 26796 | -5/Warlord | Identified Exp. Core Analyzer 26807 | -5/Warlord | Lost 8 allies 26826 | -5/Warlord | Spotted Executioner 26859 | -5/Warlord | Spotted Executioner 26920 | -5/Warlord | Lost 13 allies 26968 | -5/Warlord | Spotted Striker 26997 | -5/Warlord | Spotted Executioner 27052 | -5/Warlord | Spotted Striker 27058 | -5/Warlord | Spotted Executioner 27076 | -5/Warlord | Spotted Executioner 27089 | -5/Warlord | Warlord base infiltrated, sounded retreat 27149 | -5/Warlord | Build established: Gladiator 27149 | -5/Warlord | Spotted Striker 27171 | -5/Warlord | Spotted Striker 27192 | -5/Warlord | Lost 3 allies 27233 | -5/Warlord | Spotted Executioner 27240 | -5/Warlord | Discovered new exit (range 13) 27262 | -5/Warlord | Identified exit to Proximity Caves 27266 | -5/Warlord | Entered Proximity Caves 27280 | -4/Proximity Caves | Lost 5 parts (2n3u) 27359 | -4/Proximity Caves | Attracted the attention of an 0b10 checkpoint 27633 | -4/Proximity Caves | Discovered exit to Factory (range 9) 27645 | -4/Proximity Caves | Entered Factory 27645 | -4/Factory | Evolved 2 slots: Utility x2 27996 | -4/Factory | Fabricated Microactuators? 28304 | -4/Factory | Found Prototype Processor 28304 | -4/Factory | Identified Exp. Melee Analysis Suite 28320 | -4/Factory | Found Unknown Launcher 28320 | -4/Factory | Identified Fusion Bomb Launcher 28466 | -4/Factory | Zion Melee Resupply teleported in 28675 | -4/Factory | Retrieved Zion intel report: Prototype Stockpiles 28694 | -4/Factory | Retrieved Zion intel report: Guard Positions 28908 | -4/Factory | Discovered new exit (range 16) 29236 | -4/Factory | Terminal network hard line cut 29479 | -4/Factory | System corruption reached 10% 29545 | -4/Factory | Discovered new exit (range 5) 29549 | -4/Factory | Identified exit to Upper Caves 29732 | -4/Factory | Found Launcher Loader 29774 | -4/Factory | Entered Upper Caves 30009 | -4/Upper Caves | Discovered new exit (range 16) 30098 | -4/Upper Caves | Identified exit to Upper Caves 30099 | -4/Upper Caves | Entered another Upper Caves area 30102 | -4/Upper Caves | Learned Research trap positions 30137 | -4/Upper Caves | Encountered a Warlord checkpoint 30142 | -4/Upper Caves | Discovered new exit (range 8) 30148 | -4/Upper Caves | Identified exit to Research 30455 | -4/Upper Caves | Learned Research terminal intel 30464 | -4/Upper Caves | Discovered new exit (range 7) 30471 | -4/Upper Caves | Identified exit to Zhirov 30499 | -4/Upper Caves | Entered Zhirov 30499 | -4/Zhirov | Discovered new exit (range 3) 30520 | -4/Zhirov | Met Zhirov 30541 | -4/Zhirov | Learned location of Quarantine (-2) 30541 | -4/Zhirov | Learned location of Testing (-3) 30541 | -4/Zhirov | Learned location of Command (-1) 30552 | -4/Zhirov | Zhirov requested help retrieving the SGEMP Prototype 30620 | -4/Zhirov | Found Alien Artifact 30620 | -4/Zhirov | Identified Integrated Dissipator 30620 | -4/Zhirov | Installed Integrated Dissipator, increased core heat dissipation (+20) 30637 | -4/Zhirov | Found Alien Artifact 30679 | -4/Zhirov | Identified exit to Proximity Caves 30681 | -4/Zhirov | Entered Proximity Caves 30915 | -3/Proximity Caves | Discovered exit to Research (range 6) 31009 | -3/Proximity Caves | Build established: Trapper-Gladiator 31061 | -3/Proximity Caves | Entered Research 31061 | -3/Research | Evolved 2 slots: Utility x2 31062 | -3/Research | Loaded intel: 65 trap records 31063 | -3/Research | Loaded intel: 22 terminal locations 31246 | -3/Research | Retrieved Zion intel report: Branch Access 31246 | -3/Research | Identified exit to Testing 31485 | -3/Research | Build established: Scavenger-Gladiator 31712 | -3/Research | System corruption reached 10% 31798 | -3/Research | Core integrity fell below 50% 31800 | -3/Research | Destroyed 7 combat bots 31816 | -3/Research | Found Fusion Bomb Launcher 31825 | -3/Research | Lost 22 parts (3p4n11u4w) 31860 | -3/Research | Retrieved Zion intel report: Emergency Access 31861 | -3/Research | Zion Heavy squad teleported in 31871 | -3/Research | Found Prototype Launcher 31871 | -3/Research | Identified Adv. Micro-nuke Launcher 32089 | -3/Research | Build established: Trapper-Mutant 32201 | -3/Research | System corruption reached 30% 32225 | -3/Research | Core integrity fell below 20% 32231 | -3/Research | Lost 4 parts (1n3u) 32239 | -3/Research | Core destroyed Last Messages --------------- 32232_ B-74 Champion destroyed. 32232_ K-01 Serf destroyed. 32232_ K-01 Serf collects debris. 32232_ Slammed into Wall. 32233_ Destabilizing: System corrupted (+2). 32233_ K-01 Serf collects debris. 32234_ Slammed into Wall. 32235_ Destabilizing: System corrupted (+1). 32236_ Slammed into Wall. 32237_ Destabilizing: System corrupted (+2). 32237_ Destabilizing: System corrupted (+1). 32237_ P-80 Master fails to hack K4-Z32(Z). 32238_ K-01 Serf collects debris. 32238_ Slammed into Wall. 32238_ Destabilizing: Core damaged (-65). 32238_ Destabilizing: Core damaged (-39). 32239_ Slammed into Wall. 32239_ Destabilizing: Core damaged (-65). [Achievement: Collector] Map ----- +----------------------------------------------------+ | ???????+?????????????????# ^ "## ## | | ?????????????????????????# ""## ## | | ?????????????????????????# ""## ###### | | ???????????????????####### ""## | | ?????????????+ +^ ""################# | | ?????????????# # T"#???????????????? | | ?????????????# ??? + ""#???????????????? | | ?????????????# ?????? # ^""#???????????????? | | ?????????????????????? # ""#???????????????? | | ????????????????????# ?# ""#???????????????? | | ????????????????????# ??# "#???????????????? | | ????????????????????# ???# ^ % #???????????????? | | ????????????????????#????# ! #???????????????? | | ?????????????????????????+ #???????????????? | | ?????????????????????????# #???????????????? | | ?????????????????????????#####+###???????????????? | | ?????????????????????????????# #?????????????????? | | ?????????????????????????????# #?????????????????? | | ?????????????????????????????# #?????????????????? | | ?????????????????????????????# #?????????????????? | | ????????????????#???????????##+###???????????????? | | ????????????????+ ??????????# #???????????????? | | ????????????????# ?????????# #???????????????? | | ????????????????##%#????????# #???????????????? | | ???????????#+#####%########## #???????????????? | | ????????+ % uR R|%%kk%Z @p p #???????????????? | | ???????????# ################ #???????????????? | | ?????????????????###????????# #???????????????? | | ??+?????????????????????????# #???????????????? | | ????????????????????????????# ! #???????????????? | | ????????????????????????????######???????????????? | | ?????????????????????????????????????????????????? | | ?????????+???????????????????????????????????????? | | ?????????????????????????????????????????????????? | | ?????????????????????????????????????????????????? | | ?????????????????????????????????????????????????? | | ?????????????????????????????????????????????????? | | ?????????????????????????????????????????????????? | | ?????????????????????????????????????????????????? | | ??^^????^????????????????????????????????????????? | | ??^?^????????????????????????????????????????????? | | ??^??????????????????????????????????????????????? | | ??^??????????????????????????????????????????????? | | ?????????????????????????????????????????????????? | | ?????????????????????????????????????????????????? | | ?????^???????????????????????????????????????????? | | ?????????????????????????????????????????????????? | | ?????????????????????????????????????????????????? | | ?????????????????????????????????????????????????? | | ?????????????????????????????????????????????????? | +----------------------------------------------------+ Best States ------------- Heat Dissipation 67 Energy Generation 55 Energy Capacity 700 Matter Stores 300 Matter Capacity 300 Sight Range 16 Robot Scan Range 16 Terrain Scan Density 10 Jamming Range 16 Armor Coverage 400 Resistance: KI 20 Resistance: TH 10 Utility Shielding 90 Weapon Cycling 15 Melee Speed Boost 20 Evasion (%) 80 Melee Accuracy 18 Target Analysis 8 Core Analysis 8 Recoil Reduction 3 Kinecelleration 30 Offensive Hacking 12 Trap Extractor Capacity 8 Item Schematics ----------------- Arc Projector | -7/Zion | Archive Adv. Signal Interpreter | -7/Zion | Archive Lgt. Angular Momentum Engine | -7/Zion | Archive Chainsword | -7/Zion | Archive Thermal Shield | -7/Zion | Archive Recalibrator | -7/Zion | Archive Lrn. Tractor Beam | -7/Zion | Archive Fission Core | -7/Zion | Archive Weapon Cycler | -7/Zion | Archive EM Disruption Field | -7/Zion | Archive Adv. Heat Sink | -7/Zion | Archive Hrd. Heavy Armor Plating | -7/Zion | Archive KE Penetrator | -7/Zion | Archive Hvy. Mass Driver | -7/Zion | Archive IFF Parser | -6/Factory | Z-intel Hvy. Flak Cannon | -6/Factory | Z-intel Maul | -6/Factory | Z-intel Power Amplifier | -6/Factory | Z-intel Mic. Nuclear Core | -6/Factory | Z-intel Gravmag Array | -6/Factory | Z-intel Recoil Stabilizer | -6/Factory | Z-intel Terrain Scan Processor | -6/Factory | Z-intel Actuator Array | -6/Factory | Z-intel Coil Gun | -6/Factory | Z-intel Imp. Weapon Shielding | -6/Factory | Z-intel Seismic Detector | -6/Factory | Z-intel Imp. System Restoration Module | -6/Factory | Z-intel Melee Analysis Suite | -6/Factory | Z-intel Hrd. Light Armor Plating | -6/Factory | Z-intel Drone Bay | -6/Factory | Z-intel Reaction Control System | -6/Factory | Z-intel Component Analysis Suite | -6/Factory | Z-intel Matter Filter | -6/Factory | Z-intel Imp. Terrain Scanner | -6/Factory | Z-intel Thermic Laser | -6/Factory | Z-intel Remote Datajack | -6/Factory | Z-intel Particle Charger | -6/Factory | Z-intel Hvy. Plasma Cannon | -6/Factory | Z-intel Microactuators | -6/Factory | Z-intel Triangulator | -6/Factory | Z-intel Med. Matter Pod | -6/Factory | Z-intel Imp. Terrain Scan Processor | -6/Factory | Z-intel Adv. Weight Redist. System | -6/Factory | Z-intel Com. Matter Pod | -6/Factory | Z-intel Com. Wheel | -6/Factory | Z-intel EM Pulse Cannon | -6/Factory | Z-intel System Guard | -6/Factory | Z-intel Imp. Hardlight Generator | -6/Factory | Z-intel Med. Battery | -6/Factory | Z-intel Gatling Laser | -6/Factory | Z-intel Adv. Melee Analysis Suite | -6/Factory | Z-intel Launcher Loader | -6/Factory | Z-intel Imp. Gravmag System | -6/Factory | Z-intel Remote Shield | -6/Factory | Z-intel Adv. Sensor Array | -6/Factory | Z-intel Core Analyzer | -6/Factory | Z-intel Hacking Suite | -6/Factory | Z-intel Ion Burst Cannon | -6/Factory | Z-intel Biomechanical Wings | -6/Factory | Z-intel F-cell Engine | -6/Factory | Z-intel Prc. Grenade Launcher | -6/Factory | Z-intel Cld. Airjet | -6/Factory | Z-intel Hvy. Particle Gun | -6/Factory | Z-intel Prc. Assault Rifle | -6/Factory | Z-intel Imp. Cesium-ion Thruster | -6/Factory | Z-intel Imp. Heavy Laser | -6/Factory | Z-intel Cld. Pulse Rifle | -6/Factory | Z-intel Cmb. Antigrav System | -5/Factory | Scanalyzed Assault Drone Bay | -4/Zhirov | Free Exp. Heat Sink | -4/Zhirov | Free Exp. Optical Array | -4/Zhirov | Free Imp. Arc Thrower | -4/Zhirov | Free Robot Schematics ------------------ R-06 Scavenger | -7/Zion | Archive B-48 Gladiator | -7/Zion | Archive A-02 Transporter | -7/Zion | Archive T-07 Excavator | -6/Factory | Z-intel M-22 Extractor | -6/Factory | Z-intel G-50 Soldier | -6/Factory | Z-intel R-10 Processor | -6/Factory | Z-intel A-15 Conveyor | -6/Factory | Z-intel S-27 Virus | -6/Extension | Z-intel H-66 Slayer | -6/Extension | Z-intel L-41 Fighter | -6/Extension | Z-intel K-01 Serf | -6/Extension | Z-intel I-36 Angel | -6/Extension | Z-intel E-15 Imp | -6/Extension | Z-intel P-60 Hacker | -6/Hub_04(d) | Z-intel O-24 Administrator | -6/Hub_04(d) | Z-intel H-55 Commando | -6/Hub_04(d) | Z-intel Fabricated ------------ Microactuators | x2 | -4/Factory Repaired ---------- Autogun | 35% | -9/Materials Studied --------- Lgt. Treads | -9/Materials | Hacked Autogun | -9/Materials | Hacked Imp. Ion Engine | -9/Materials | Hacked Mni. Grenade Launcher | -9/Materials | Hacked Mining Laser | -9/Materials | Hacked Imp. Carbon-fiber Leg | -7/Factory | Hacked Greatsword | -5/Factory | Hacked Arm. Leg | -4/Factory | Hacked Alien Tech Used ----------------- Integrated Dissipator Achievements -------------- Collector Tune-up Challenges ------------ None Game ------ Seed PhasingStructuralSuite Manual? 0 Play Time 03:07:38 Cumulative 218.4 hours Start 2025.12.13 @ 16:21:03 End 2025.12.14 @ 12:27:22 Sessions 9 Manual Loads 0 Difficulty Rogue Special Mode None Game No. 208 Rogue 208 Adventurer 0 Explorer 0 Win Type - Total 10 Types 7/0/2/0/0/0/0/0/0/1 Lore% 85 Gallery% 75 Achievement% 59 Wizard Run 0 Options --------- Layout 1 ASCII 0 Keyboard 1 Movement Arrows Keybinds 0 Fullscreen 1 Font 24/Smallcaps Map View 50x40 Zoom Use 0% Tactical HUD 1 Map Filters NONE Filters NONE Steam 1 RUN: 04a42138-bd86-407f-a3a0-e05bc0b734d1